Workbook

Sheet 財務分析シート ver3
B4: ■基本情報
B5: 商号 | E5: =【入力】財務分析!D5 -> 株式会社○○
B7: 所在地 | E7: =【入力】財務分析!D6 -> 東京都○○
B8: 代表者名 | E8: =【入力】財務分析!D7 -> ○○ ○○
B9: 業種_大分類 | E9: =【入力】財務分析!D8 -> 13_観光業
B10: 業種_小分類 | E10: =【入力】財務分析!D9 -> 1301_観光業
B11: 事業規模 | E11: =【入力】財務分析!D19 -> 中規模事業者
B13: 売上高 | E13: =【入力】財務分析!$D$26 -> 5130250
B14: 営業利益 | E14: =【入力】財務分析!$D$28 -> 15000
B15: 従業員数 | E15: =【入力】財務分析!D11 -> 30
B18: ■財務指標(最新期）
B19: 指標 | E19: =【入力】財務分析!D25 -> 2017-03-01
E20: 算出結果 | G20: 貴社点数 | I20: 業種基準値
B21: ①売上増加率 | E21: =【入力】財務分析!K6 -> 0.07849528439 | G21: =【入力】財務分析!L6 -> 4 | I21: =IFERROR(INDEX(【参照】売上増加率基準値!$E:$E,MATCH($E$10&$E$11,INDEX(【参照】売上増加率基準値!$C:$C&【参照】売上増加率基準値!$D:$D,),0)),"-") -> 0.03393972438
B22: ②営業利益率 | E22: =【入力】財務分析!K7 -> 0.002923834121 | G22: =【入力】財務分析!L7 -> 2 | I22: =IFERROR(INDEX(【参照】営業利益率基準値!$E:$E,MATCH($E$10&$E$11,INDEX(【参照】営業利益率基準値!$C:$C&【参照】営業利益率基準値!$D:$D,),0)),"-") -> 0.02833026559
B23: ③労働生産性 | E23: =【入力】財務分析!K8 -> 500 | G23: =【入力】財務分析!L8 -> 3 | I23: =IFERROR(INDEX(【参照】労働生産性基準値!$E:$E,MATCH($E$10&$E$11,INDEX(【参照】労働生産性基準値!$C:$C&【参照】労働生産性基準値!$D:$D,),0)),"-") -> 655.4534413
B24: ④EBITDA有利子負債倍率 | E24: =【入力】財務分析!K9 -> -0.06666666667 | G24: =【入力】財務分析!L9 -> 5 | I24: =IFERROR(INDEX(【参照】EBITDA基準値!$E:$E,MATCH($E$10&$E$11,INDEX(【参照】EBITDA基準値!$C:$C&【参照】EBITDA基準値!$D:$D,),0)),"-") -> 2.700291182
B25: ⑤営業運転資本回転期間 | E25: =【入力】財務分析!K10 -> 0.771927294 | G25: =【入力】財務分析!L10 -> 2 | I25: =IFERROR(INDEX(【参照】営業運転資本回転期間基準値!$E:$E,MATCH($E$10&$E$11,INDEX(【参照】営業運転資本回転期間基準値!$C:$C&【参照】営業運転資本回転期間基準値!$D:$D,),0)),"-") -> 0.3037884925
B26: ⑥自己資本比率 | E26: =【入力】財務分析!K11 -> 0.3536339969 | G26: =【入力】財務分析!L11 -> 4 | I26: =IFERROR(INDEX(【参照】自己資本比率基準値!$E:$E,MATCH($E$10&$E$11,INDEX(【参照】自己資本比率基準値!$C:$C&【参照】自己資本比率基準値!$D:$D,),0)),"-") -> 0.1992749357
E28: 総合評価点 | H28: =SUM(G21:H26) -> 20 | I28: =IF(H28>=24,"A",IF(H28>=18,"B",IF(H28>=12,"C","D"))) -> B
B31: ■財務指標（過去2期）
B32: 指標 | E32: =【入力】財務分析!E25 -> 2016-03-01 | K32: =【入力】財務分析!F25 -> 2015-03-01 | S32: ※１各項目の評点および総合評価点は各項目の業種基準値からの乖離を示すものであり、点数の高低が必ずしも企業の評価を示すものではありません。非財務指標も含め、総合的な判断が必要なことにご留意ください。 ※２レーダーチャートで3期分の財務分析結果の推移が確認できるため、各指標が良化（あるいは悪化）した要因を非財務の対話シートを活用しながら把握することで、経営状況や課題の把握に繋がります。
E33: 算出結果 | G33: 貴社点数 | I33: 業種基準値 | K33: 算出結果 | N33: 貴社点数 | P33: 業種基準値
B34: ①売上増加率 | E34: =【入力】財務分析!M6 -> -0.02353600471 | G34: =【入力】財務分析!N6 -> 2 | I34: =IFERROR(INDEX(【参照】売上増加率基準値!$E:$E,MATCH($E$10&$E$11,INDEX(【参照】売上増加率基準値!$C:$C&【参照】売上増加率基準値!$D:$D,),0)),"-") -> 0.03393972438 | K34: =【入力】財務分析!O6 -> -0.01228421472 | N34: =【入力】財務分析!P6 -> 2 | P34: =IFERROR(INDEX(【参照】売上増加率基準値!$E:$E,MATCH($E$10&$E$11,INDEX(【参照】売上増加率基準値!$C:$C&【参照】売上増加率基準値!$D:$D,),0)),"-") -> 0.03393972438
B35: ②営業利益率 | E35: =【入力】財務分析!M7 -> -0.003220612593 | G35: =【入力】財務分析!N7 -> 2 | I35: =IFERROR(INDEX(【参照】営業利益率基準値!$E:$E,MATCH($E$10&$E$11,INDEX(【参照】営業利益率基準値!$C:$C&【参照】営業利益率基準値!$D:$D,),0)),"-") -> 0.02833026559 | K35: =【入力】財務分析!O7 -> 0 | N35: =【入力】財務分析!P7 -> 2 | P35: =IFERROR(INDEX(【参照】営業利益率基準値!$E:$E,MATCH($E$10&$E$11,INDEX(【参照】営業利益率基準値!$C:$C&【参照】営業利益率基準値!$D:$D,),0)),"-") -> 0.02833026559
B36: ③労働生産性 | E36: =【入力】財務分析!M8 -> -392.8205128 | G36: =【入力】財務分析!N8 -> 2 | I36: =IFERROR(INDEX(【参照】労働生産性基準値!$E:$E,MATCH($E$10&$E$11,INDEX(【参照】労働生産性基準値!$C:$C&【参照】労働生産性基準値!$D:$D,),0)),"-") -> 655.4534413 | K36: =【入力】財務分析!O8 -> 0 | N36: =【入力】財務分析!P8 -> 2 | P36: =IFERROR(INDEX(【参照】労働生産性基準値!$E:$E,MATCH($E$10&$E$11,INDEX(【参照】労働生産性基準値!$C:$C&【参照】労働生産性基準値!$D:$D,),0)),"-") -> 655.4534413
B37: ④EBITDA有利子負債倍率 | E37: =【入力】財務分析!M9 -> 61.1983245 | G37: =【入力】財務分析!N9 -> 1 | I37: =IFERROR(INDEX(【参照】EBITDA基準値!$E:$E,MATCH($E$10&$E$11,INDEX(【参照】EBITDA基準値!$C:$C&【参照】EBITDA基準値!$D:$D,),0)),"-") -> 2.700291182 | K37: =【入力】財務分析!O9 -> - | N37: =【入力】財務分析!P9 -> 1 | P37: =IFERROR(INDEX(【参照】EBITDA基準値!$E:$E,MATCH($E$10&$E$11,INDEX(【参照】EBITDA基準値!$C:$C&【参照】EBITDA基準値!$D:$D,),0)),"-") -> 2.700291182
B38: ⑤営業運転資本回転期間 | E38: =【入力】財務分析!M10 -> 2.832388683 | G38: =【入力】財務分析!N10 -> 1 | I38: =IFERROR(INDEX(【参照】営業運転資本回転期間基準値!$E:$E,MATCH($E$10&$E$11,INDEX(【参照】営業運転資本回転期間基準値!$C:$C&【参照】営業運転資本回転期間基準値!$D:$D,),0)),"-") -> 0.3037884925 | K38: =【入力】財務分析!O10 -> 1.133216416 | N38: =【入力】財務分析!P10 -> 2 | P38: =IFERROR(INDEX(【参照】営業運転資本回転期間基準値!$E:$E,MATCH($E$10&$E$11,INDEX(【参照】営業運転資本回転期間基準値!$C:$C&【参照】営業運転資本回転期間基準値!$D:$D,),0)),"-") -> 0.3037884925
B39: ⑥自己資本比率 | E39: =【入力】財務分析!M11 -> 0.02148004996 | G39: =【入力】財務分析!N11 -> 2 | I39: =IFERROR(INDEX(【参照】自己資本比率基準値!$E:$E,MATCH($E$10&$E$11,INDEX(【参照】自己資本比率基準値!$C:$C&【参照】自己資本比率基準値!$D:$D,),0)),"-") -> 0.1992749357 | K39: =【入力】財務分析!O11 -> 0.2424486468 | N39: =【入力】財務分析!P11 -> 3 | P39: =IFERROR(INDEX(【参照】自己資本比率基準値!$E:$E,MATCH($E$10&$E$11,INDEX(【参照】自己資本比率基準値!$C:$C&【参照】自己資本比率基準値!$D:$D,),0)),"-") -> 0.1992749357
E41: 総合評価点 | H41: =SUM(G34:H39) -> 10 | I41: =IF(H41>=24,"A",IF(H41>=18,"B",IF(H41>=12,"C","D"))) -> D | K41: 総合評価点 | O41: =SUM(N34:O39) -> 12 | P41: =IF(O41>=24,"A",IF(O41>=18,"B",IF(O41>=12,"C","D"))) -> C
E43: ※総合評価点のランクはA：24点以上、B：18点以上24点未満、C：12点以上18点未満、D：12点未満

Sheet 【入力】財務分析
B1: 以下項目の黄色い網掛け部分について入力してください。
B3: ■基本入力情報 | D3: ※金額の単位は千円、従業員数の単位は人 | H3: ■算出結果
B4: 項目 | D4: 入力欄 | K4: =D25 -> 2017-03-01 | M4: =E25 -> 2016-03-01 | O4: =F25 -> 2015-03-01
B5: 商号 | D5: 株式会社○○ | H5: 指標 | K5: 算出結果 | L5: 点数 | M5: 算出結果 | N5: 点数 | O5: 算出結果 | P5: 点数
B6: 所在地 | D6: 東京都○○ | H6: ①売上増加率 | K6: =IFERROR(IF(OR(D26="",D27=""),"-",(D26/D27)-1),"-") -> 0.07849528439 | L6: =IFERROR(IF(OR(K6="-",$J$15="-"),".",IF((K6>=$M$15),5,IF(AND(K6>=$L$15,K6<$M$15),4,IF(AND(K6>=$K$15,K6<$L$15),3,IF(AND(K6>=$J$15,K6<$K$15),2,IF((K6<$J$15),1)))))),".") -> 4 | M6: =IFERROR(IF(OR(E26="",E27=""),"-",(E26/E27)-1),"-") -> -0.02353600471 | N6: =IFERROR(IF(OR($J$15="-",M6="-"),".",IF((M6>=$M$15),5,IF(AND(M6>=$L$15,M6<$M$15),4,IF(AND(M6>=$K$15,M6<$L$15),3,IF(AND(M6>=$J$15,M6<$K$15),2,IF((M6<$J$15),1)))))),".") -> 2 | O6: =IFERROR(IF(OR(F26="",F27=""),"-",(F26/F27)-1),"-") -> -0.01228421472 | P6: =IFERROR(IF(OR($J$15="-",O6="-"),".",IF((O6>=$M$15),5,IF(AND(O6>=$L$15,O6<$M$15),4,IF(AND(O6>=$K$15,O6<$L$15),3,IF(AND(O6>=$J$15,O6<$K$15),2,IF((O6<$J$15),1)))))),".") -> 2
B7: 代表者名 | D7: ○○ ○○ | H7: ②営業利益率 | K7: =IFERROR(IF(OR(D28="",D26=""),"-",D28/D26),"-") -> 0.002923834121 | L7: =IFERROR(IF(OR($J$16="-",K7="-"),".",IF((K7>=$M$16),5,IF(AND(K7>=$L$16,K7<$M$16),4,IF(AND(K7>=$K$16,K7<$L$16),3,IF(AND(K7>=$J$16,K7<$K$16),2,IF((K7<$J$16),1)))))),".") -> 2 | M7: =IFERROR(IF(OR(E28="",E26=""),"-",E28/E26),"-") -> -0.003220612593 | N7: =IFERROR(IF(OR($J$15="-",M7="-"),".",IF((M7>=$M$16),5,IF(AND(M7>=$L$16,M7<$M$16),4,IF(AND(M7>=$K$16,M7<$L$16),3,IF(AND(M7>=$J$16,M7<$K$16),2,IF((M7<$J$16),1)))))),".") -> 2 | O7: =IFERROR(IF(OR(F28="",F26=""),"-",F28/F26),"-") -> 0 | P7: =IFERROR(IF(OR($J$16="-",O7="-"),".",IF((O7>=$M$16),5,IF(AND(O7>=$L$16,O7<$M$16),4,IF(AND(O7>=$K$16,O7<$L$16),3,IF(AND(O7>=$J$16,O7<$K$16),2,IF((O7<$J$16),1)))))),".") -> 2
B8: ローカルベンチマーク23業種_大分類 | D8: 13_観光業 | H8: ③労働生産性 ※8 | K8: =IFERROR(IF(OR(D28="",D11=""),"-",D28/D11),"-") -> 500 | L8: =IFERROR(IF(OR($J$17="-",K8="-"),".",IF((K8>=$M$17),5,IF(AND(K8>=$L$17,K8<$M$17),4,IF(AND(K8>=$K$17,K8<$L$17),3,IF(AND(K8>=$J$17,K8<$K$17),2,IF((K8<$J$17),1)))))),".") -> 3 | M8: =IFERROR(IF(OR(E28="",E11=""),"-",E28/E11),"-") -> -392.8205128 | N8: =IFERROR(IF(OR($J$17="-",M8="-"),".",IF((M8>=$M$17),5,IF(AND(M8>=$L$17,M8<$M$17),4,IF(AND(M8>=$K$17,M8<$L$17),3,IF(AND(M8>=$J$17,M8<$K$17),2,IF((M8<$J$17),1)))))),".") -> 2 | O8: =IFERROR(IF(OR(F28="",F11=""),"-",F28/F11),"-") -> 0 | P8: =IFERROR(IF(OR($J$17="-",O8="-"),".",IF((O8>=$M$17),5,IF(AND(O8>=$L$17,O8<$M$17),4,IF(AND(O8>=$K$17,O8<$L$17),3,IF(AND(O8>=$J$17,O8<$K$17),2,IF((O8<$J$17),1)))))),".") -> 2
B9: ローカルベンチマーク23業種_小分類 | D9: 1301_観光業 | H9: ④EBITDA有利子負債倍率 ※9 | K9: =IFERROR(IF(OR(D28="",D29="",D30="",D37=""),"-",(D37-D30)/(D28+D29)),"-") -> -0.06666666667 | L9: =IFERROR(IF($J$18="-",".",IF(AND($D$37<>"",$D$30<>"",OR($D$37<$D$30,$D$37-$D$30=0)),5,IF(AND($D$28<>"",$D$29<>"",(($D$28+$D$29)<=0)),1,IF((K9<$M$18),5,IF(AND(K9>=$M$18,K9<$L$18),4,IF(AND(K9>=$L$18,K9<$K$18),3,IF(AND(K9>=$K$18,K9<$J$18),2,IF(AND(K9>=$J$18,K9<>"-"),1,IF(K9="-","."))))))))),".") -> 5 | M9: =IFERROR(IF(OR(E28="",E29="",E30="",E37=""),"-",(E37-E30)/(E28+E29)),"-") -> 61.1983245 | N9: =IFERROR(IF($J$18="-",".",IF(AND($E$37<>"",$E$30<>"",OR($E$37<$E$30,$E$37-$E$30=0)),5,IF(AND($E$28<>"",$E$29<>"",(($E$28+$E$29)<=0)),1,IF((M9<$M$18),5,IF(AND(M9>=$M$18,M9<$L$18),4,IF(AND(M9>=$L$18,M9<$K$18),3,IF(AND(M9>=$K$18,M9<$J$18),2,IF(AND(M9>=$J$18,M9<>"-"),1,IF(M9="-","."))))))))),".") -> 1 | O9: =IFERROR(IF(OR(F28="",F29="",F30="",F37=""),"-",(F37-F30)/(F28+F29)),"-") -> - | P9: =IFERROR(IF($J$18="-",".",IF(AND($F$37<>"",$F$30<>"",OR($F$37<$F$30,$F$37-$F$30=0)),5,IF(AND($F$28<>"",$F$29<>"",(($F$28+$F$29)<=0)),1,IF((O9<$M$18),5,IF(AND(O9>=$M$18,O9<$L$18),4,IF(AND(O9>=$L$18,O9<$K$18),3,IF(AND(O9>=$K$18,O9<$J$18),2,IF(AND(O9>=$J$18,O9<>"-"),1,IF(O9="-","."))))))))),".") -> 1
D10: 最新決算期 | E10: 前期決算期 | F10: 前々期決算期 | H10: ⑤営業運転資本回転期間 | K10: =IFERROR(IF(OR(D26="",AND(D32="",D31="",D33="",D36="",D35)),"-",(D32+D31+D33-(D36+D35))/(D26/12)),"-") -> 0.771927294 | L10: =IFERROR(IF(OR($J$19="-",K10="-"),".",IF((K10<$M$19),5,IF(AND(K10>=$M$19,K10<$L$19),4,IF(AND(K10>=$L$19,K10<$K$19),3,IF(AND(K10>=$K$19,K10<$J$19),2,IF((K10>=$J$19),1)))))),".") -> 2 | M10: =IFERROR(IF(OR(E26="",AND(E32="",E31="",E33="",E36="",E35)),"-",(E32+E31+E33-(E36+E35))/(E26/12)),"-") -> 2.832388683 | N10: =IFERROR(IF(OR($J$19="-",M10="-"),".",IF((M10<$M$19),5,IF(AND(M10>=$M$19,M10<$L$19),4,IF(AND(M10>=$L$19,M10<$K$19),3,IF(AND(M10>=$K$19,M10<$J$19),2,IF((M10>=$J$19),1)))))),".") -> 1 | O10: =IFERROR(IF(OR(F26="",AND(F32="",F31="",F33="",F36="",F35)),"-",(F32+F31+F33-(F36+F35))/(F26/12)),"-") -> 1.133216416 | P10: =IFERROR(IF(OR($J$19="-",O10="-"),".",IF((O10<$M$19),5,IF(AND(O10>=$M$19,O10<$L$19),4,IF(AND(O10>=$L$19,O10<$K$19),3,IF(AND(O10>=$K$19,O10<$J$19),2,IF((O10>=$J$19),1)))))),".") -> 2
B11: 従業員数（正社員）※1 | D11: 30 | E11: 39 | F11: 30 | H11: ⑥自己資本比率 | K11: =IFERROR(IF(OR(D38="",D34=""),"-",D38/(D38+D34)),"-") -> 0.3536339969 | L11: =IFERROR(IF(OR($J$20="-",K11="-"),".",IF((K11>=$M$20),5,IF(AND(K11>=$L$20,K11<$M$20),4,IF(AND(K11>=$K$20,K11<$L$20),3,IF(AND(K11>=$J$20,K11<$K$20),2,IF((K11<$J$20),1)))))),".") -> 4 | M11: =IFERROR(IF(OR(E38="",E34=""),"-",E38/(E38+E34)),"-") -> 0.02148004996 | N11: =IFERROR(IF(OR($J$20="-",M11="-"),".",IF((M11>=$M$20),5,IF(AND(M11>=$L$20,M11<$M$20),4,IF(AND(M11>=$K$20,M11<$L$20),3,IF(AND(M11>=$J$20,M11<$K$20),2,IF((M11<$J$20),1)))))),".") -> 2 | O11: =IFERROR(IF(OR(F38="",F34=""),"-",F38/(F38+F34)),"-") -> 0.2424486468 | P11: =IFERROR(IF(OR($J$20="-",O11="-"),".",IF((O11>=$M$20),5,IF(AND(O11>=$L$20,O11<$M$20),4,IF(AND(O11>=$K$20,O11<$L$20),3,IF(AND(O11>=$J$20,O11<$K$20),2,IF((O11<$J$20),1)))))),".") -> 3
B12: 資本金 ※2 | D12: 10000
H13: ="■"&D19&"_"&D9&"_企業のランク基準" -> ■中規模事業者_1301_観光業_企業のランク基準
H14: 指標 | J14: ⅳ | K14: ⅲ | L14: ⅱ | M14: ⅰ
H15: ①売上増加率 | J15: =IFERROR(INDEX(【参照】売上増加率基準値!$G:$G,MATCH($D$9&$D$19,INDEX(【参照】売上増加率基準値!$C:$C&【参照】売上増加率基準値!$D:$D,),0)),"-") -> -0.04079553645 | K15: =IFERROR(INDEX(【参照】売上増加率基準値!$H:$H,MATCH($D$9&$D$19,INDEX(【参照】売上増加率基準値!$C:$C&【参照】売上増加率基準値!$D:$D,),0)),"-") -> 0.01300276773 | L15: =IFERROR(INDEX(【参照】売上増加率基準値!$I:$I,MATCH($D$9&$D$19,INDEX(【参照】売上増加率基準値!$C:$C&【参照】売上増加率基準値!$D:$D,),0)),"-") -> 0.07640030651 | M15: =IFERROR(INDEX(【参照】売上増加率基準値!$J:$J,MATCH($D$9&$D$19,INDEX(【参照】売上増加率基準値!$C:$C&【参照】売上増加率基準値!$D:$D,),0)),"-") -> 0.2061577799
B16: ※プルダウンメニューが利用できない場合は「業種シート」から 該当する日本標準分類を | H16: ②営業利益率 | J16: =IFERROR(INDEX(【参照】営業利益率基準値!$G:$G,MATCH($D$9&$D$19,INDEX(【参照】営業利益率基準値!$C:$C&【参照】営業利益率基準値!$D:$D,),0)),"-") -> -0.01940513494 | K16: =IFERROR(INDEX(【参照】営業利益率基準値!$H:$H,MATCH($D$9&$D$19,INDEX(【参照】営業利益率基準値!$C:$C&【参照】営業利益率基準値!$D:$D,),0)),"-") -> 0.008464293133 | L16: =IFERROR(INDEX(【参照】営業利益率基準値!$I:$I,MATCH($D$9&$D$19,INDEX(【参照】営業利益率基準値!$C:$C&【参照】営業利益率基準値!$D:$D,),0)),"-") -> 0.05164942205 | M16: =IFERROR(INDEX(【参照】営業利益率基準値!$J:$J,MATCH($D$9&$D$19,INDEX(【参照】営業利益率基準値!$C:$C&【参照】営業利益率基準値!$D:$D,),0)),"-") -> 0.09784018034
B17: コピー＆ペーストして下さい。 | H17: ③労働生産性 | J17: =IFERROR(INDEX(【参照】労働生産性基準値!$G:$G,MATCH($D$9&$D$19,INDEX(【参照】労働生産性基準値!$C:$C&【参照】労働生産性基準値!$D:$D,),0)),"-") -> -571.3333333 | K17: =IFERROR(INDEX(【参照】労働生産性基準値!$H:$H,MATCH($D$9&$D$19,INDEX(【参照】労働生産性基準値!$C:$C&【参照】労働生産性基準値!$D:$D,),0)),"-") -> 224.70819 | L17: =IFERROR(INDEX(【参照】労働生産性基準値!$I:$I,MATCH($D$9&$D$19,INDEX(【参照】労働生産性基準値!$C:$C&【参照】労働生産性基準値!$D:$D,),0)),"-") -> 1359.292778 | M17: =IFERROR(INDEX(【参照】労働生産性基準値!$J:$J,MATCH($D$9&$D$19,INDEX(【参照】労働生産性基準値!$C:$C&【参照】労働生産性基準値!$D:$D,),0)),"-") -> 4319.792857
H18: ④EBITDA有利子負債倍率 | J18: =IFERROR(INDEX(【参照】EBITDA基準値!$G:$G,MATCH($D$9&$D$19,INDEX(【参照】EBITDA基準値!$C:$C&【参照】EBITDA基準値!$D:$D,),0)),"-") -> 18.5453029 | K18: =IFERROR(INDEX(【参照】EBITDA基準値!$H:$H,MATCH($D$9&$D$19,INDEX(【参照】EBITDA基準値!$C:$C&【参照】EBITDA基準値!$D:$D,),0)),"-") -> 8.091030254 | L18: =IFERROR(INDEX(【参照】EBITDA基準値!$I:$I,MATCH($D$9&$D$19,INDEX(【参照】EBITDA基準値!$C:$C&【参照】EBITDA基準値!$D:$D,),0)),"-") -> 0.3621705932 | M18: =IFERROR(INDEX(【参照】EBITDA基準値!$J:$J,MATCH($D$9&$D$19,INDEX(【参照】EBITDA基準値!$C:$C&【参照】EBITDA基準値!$D:$D,),0)),"-") -> 0
B19: 事業規模 ※3 | D19: =IF(OR(D8="",D9=""),"業種欄が未入力のため規模判定ができません",IF(LEFT(D8,2)<>LEFT(D9,2),"業種欄に間違いがあるため規模判定ができません",IF(D11="","従業員数欄が未入力のため規模判定ができません",IF(D12="","資本金欄が未入力のため規模判定ができません",【参照】企業規模!C2)))) -> 中規模事業者 | H19: ⑤営業運転資本回転期間 | J19: =IFERROR(INDEX(【参照】営業運転資本回転期間基準値!$G:$G,MATCH($D$9&$D$19,INDEX(【参照】営業運転資本回転期間基準値!$C:$C&【参照】営業運転資本回転期間基準値!$D:$D,),0)),"-") -> 1.3 | K19: =IFERROR(INDEX(【参照】営業運転資本回転期間基準値!$H:$H,MATCH($D$9&$D$19,INDEX(【参照】営業運転資本回転期間基準値!$C:$C&【参照】営業運転資本回転期間基準値!$D:$D,),0)),"-") -> 0.6 | L19: =IFERROR(INDEX(【参照】営業運転資本回転期間基準値!$I:$I,MATCH($D$9&$D$19,INDEX(【参照】営業運転資本回転期間基準値!$C:$C&【参照】営業運転資本回転期間基準値!$D:$D,),0)),"-") -> 0.1 | M19: =IFERROR(INDEX(【参照】営業運転資本回転期間基準値!$J:$J,MATCH($D$9&$D$19,INDEX(【参照】営業運転資本回転期間基準値!$C:$C&【参照】営業運転資本回転期間基準値!$D:$D,),0)),"-") -> -0.2
B20: ※上表の 欄が空欄になると事業規模が判定できないため、必ず入力して下さい。 | H20: ⑥自己資本比率 | J20: =IFERROR(INDEX(【参照】自己資本比率基準値!$G:$G,MATCH($D$9&$D$19,INDEX(【参照】自己資本比率基準値!$C:$C&【参照】自己資本比率基準値!$D:$D,),0)),"-") -> -0.07263593689 | K20: =IFERROR(INDEX(【参照】自己資本比率基準値!$H:$H,MATCH($D$9&$D$19,INDEX(【参照】自己資本比率基準値!$C:$C&【参照】自己資本比率基準値!$D:$D,),0)),"-") -> 0.1054148105 | L20: =IFERROR(INDEX(【参照】自己資本比率基準値!$I:$I,MATCH($D$9&$D$19,INDEX(【参照】自己資本比率基準値!$C:$C&【参照】自己資本比率基準値!$D:$D,),0)),"-") -> 0.3244207245 | M20: =IFERROR(INDEX(【参照】自己資本比率基準値!$J:$J,MATCH($D$9&$D$19,INDEX(【参照】自己資本比率基準値!$C:$C&【参照】自己資本比率基準値!$D:$D,),0)),"-") -> 0.5891399567
B22: ■財務分析用入力情報 | D22: ※金額の単位は千円 | H22: ■算出指標
B23: 項目 | D23: 入力欄 | H23: 指標 | K23: 分類 | L23: 単位 | M23: 算出式
D24: 最新決算期 | E24: 前期決算期 | F24: 前々期決算期 | H24: ①売上増加率 | K24: 売上持続性 | L24: ％ | M24: （最新期売上高/前期売上高）－１
B25: 決算年月 | D25: 2017-03-01 | E25: 2016-03-01 | F25: 2015-03-01 | H25: ②営業利益率 | K25: 収益性 | L25: ％ | M25: 営業利益／最新期売上高
B26: 売上高 | D26: 5130250 | E26: 4756859 | F26: 4871515 | H26: ③労働生産性 ※8 | K26: 生産性 | L26: 千円 | M26: 営業利益／従業員数
B27: 前期売上高 | D27: =E26 -> 4756859 | E27: =F26 -> 4871515 | F27: 4932102 | H27: ④EBITDA有利子負債倍率 ※9 | K27: 健全性 | L27: 倍 | M27: （借入金－現金・預金）／（営業利益＋減価償却費） ※9
B28: 営業利益 | D28: 15000 | E28: -15320 | F28: 0 | H28: ⑤営業運転資本回転期間 | K28: 効率性 | L28: ヶ月 | M28: {売上債権（売掛金＋受取手形）＋棚卸資産－
B29: 減価償却費 ※4 | D29: 0 | E29: 18340 | F29: 0 | M29: 買入債務（買掛金＋支払手形）}／（売上高／１２）
B30: 現金・預金 | D30: 1000 | E30: 465301.06 | F30: 474607.0812 | H30: ⑥自己資本比率 | K30: 安全性 | L30: ％ | M30: 純資産／負債・純資産合計
B31: 受取手形 ※5 | D31: 270760 | E31: 259929.6 | F31: 228738.048
B32: 売掛金 | D32: 456500 | E32: 944198.4 | F32: 566894.592
B33: 棚卸資産 | D33: 439285 | E33: 621713.6 | F33: 371107.968
B34: 負債合計 | D34: 1668387 | E34: 3201651.52 | F34: 2409453.338
B35: 支払手形 ※6 | D35: 463324 | E35: 444791.04 | F35: 391416.1152
B36: 買掛金 | D36: 373206 | E36: 258277.76 | F36: 315284.4288
B37: 借入金 ※7 | D37: 0 | E37: 650120 | F37: 970130
B38: 純資産合計 | D38: 912793 | E38: 70281.28 | F38: 771127.5264
B40: ※1：従業員（正社員）には、パート及び派遣及び契約社員は含まれません。 | H40: (表1）
B41: 従業員兼役員は含まれます。 | H41: 業種 | I41: 本財務分析シートの業種区分 | K41: 中小企業基本法 中小企業定義
B42: 役員のみの企業で上記定義によると0名となる場合については、1名として下さい。 | H42: 製造業 その他 | I42: 農業、建設業、製造業、不動産業、 | K42: 資本金の額又は出資の総額が3億円以下の会社 又は 常時使用する従業員の数が300人以下の会社及び個人
B43: ※2：個人事業主の場合は、資本金は「0」と入力して下さい。 | I43: 運輸業、エネルギー、その他 | L43: 内、従業員20人以下の企業を「小規模企業」とする。
B44: ※3：事業規模は、中小企業基本法の中小企業者の定義(表1）に基づき | H44: 卸売業 | I44: 卸売業 | K44: 資本金の額又は出資の総額が1億円以下の会社 又は 常時使用する従業員の数が100人以下の会社及び個人
B45: 判定しております。 | L45: 内、従業員5人以下の企業を「小規模企業」とする。
B46: 尚、中小企業以外の「中堅企業等」は、「中規模企業」として事業規模判定をしております。 | H46: 小売業 | I46: 小売業、飲食業 | K46: 資本金の額又は出資の総額が5千万円以下の会社 又は 常時使用する従業員の数が50人以下の会社及び個人
B47: ※4：製造原価、一般管理販売費等に計上されている減価償却費の合計を | L47: 内、従業員5人以下の企業を「小規模企業」とする。
B48: 入力して下さい。 | H48: サービス業 | I48: サービス業、医療業、保健衛生、 | K48: 資本金の額又は出資の総額が5千万円以下の会社 又は 常時使用する従業員の数が100人以下の会社及び個人
B49: ※5：受取手形には、割引手形を含めた金額を入力して下さい。 | I49: 廃棄物処理業、観光業 | L49: 内、従業員5人以下の企業を「小規模企業」とする。
B50: ※6：支払手形には、設備支払手形は含めません。
B51: ※7：借入金は、長期借入・短期借入・1年以内返済長期借入金の合計を入力して下さい。なお、長期借入・短期借入・1年以内返済長期借入金の内数となっていない役員借入金は基準値の計算上、含まれません。
B52: ※8：本分析の労働生産性は簡易的に計算したものとなりますので、経営力向上計画等に記載の際は、それぞれの定義に沿った数値を各自で計算して下さい。
B53: ※9：以下の優先順位に基づき、点数を付与します。
B54: 優先①：（借入金－現金・預金）が0以下の場合は、「5点」を付与
B55: 優先②：（営業利益＋減価償却費）が0以下の場合は、「1点」を付与
B56: 優先③：（借入金－現金・預金）が0超の時及び（営業利益＋減価償却費）が0超の時、本式にて算出された結果に基づき点数を付与

Sheet 【入力】商流・業務フロー
V1: 商号 | Y1: =【入力】財務分析!D5 -> 株式会社○○
V2: 売上高 | Y2: =【入力】財務分析!D26 -> 5130250
V3: 営業利益 | Y3: =【入力】財務分析!D28 -> 15000
V4: 従業員数 | Y4: =【入力】財務分析!$D$11 -> 30
B5: ＜製品製造、サービス提供における業務フローと差別化ポイント＞
B6: 業務① | G6: 業務② | L6: 業務③ | Q6: 業務④ | V6: 業務⑤ | AA6: 提供内容／顧客提供価値
B7: ■実施内容 | G7: ■実施内容 | L7: ■実施内容 | Q7: ■実施内容 | V7: ■実施内容 | AA7: ■製品・商品・サービスの内容
F10: ⇒ | K10: ⇒ | P10: ⇒ | U10: ⇒ | Z10: ⇒
B13: ■差別化ポイント | G13: ■差別化ポイント | L13: ■差別化ポイント | Q13: ■差別化ポイント | V13: ■差別化ポイント | AA13: ■どのような価値を提供しているか
B20: ＜商流把握＞
B21: 仕入先 | L21: 当社 | V21: エンドユーザー
B22: ■社名・取引金額・内容等 | V22: ■属性（消費者・企業等）
V23: ※社名・取引金額・内容等
G24: 協力先 | Q24: 得意先
G25: ■社名・取引金額・内容等 | Q25: ■属性（消費者・企業等）
Q26: ※社名・取引金額・内容等
B27: ■選定理由
V28: ■選ばれている理由
G30: ■選定理由
Q31: ■選ばれている理由

Sheet 【入力】4つの視点
W1: 商号 | AA1: =【入力】財務分析!D5 -> 株式会社○○
W2: 売上高 | AA2: =【入力】財務分析!D26 -> 5130250
W3: 営業利益 | AA3: =【入力】財務分析!D28 -> 15000
W4: 従業員数 | AA4: =【入力】財務分析!$D$11 -> 30
B6: ①経営者 | C6: 経営理念・ビジョン | R6: ③企業を取り巻く環境・関係者 | S6: 市場動向・規模・シェアの把握
C7: 経営哲学・考え・方針等 | S7: 競合他社との比較
S9: 顧客リピート率・新規開拓率
S10: 主な取引先企業の推移
S11: 顧客からのフィードバックの有無
C12: 経営意欲 | S12: 従業員定着率
C13: ※成長志向・現状維持など | S13: 勤続年数・平均給与
C15: 後継者の有無 | S15: 取引金融機関数・推移
C16: 後継者の育成状況 | S16: メインバンクとの関係
C17: 承継のタイミング・関係
B18: ②事業 | C18: 企業及び事業沿革 | R18: ④内部管理体制 | S18: 組織体制
C19: ※ターニングポイントの把握 | S19: 品質管理・情報管理体制
C21: 強み | S21: 事業計画・経営計画の有無
C22: 技術力・販売力等 | S22: 従業員との共有状況
S23: 社内会議の実施状況
C24: 弱み | S24: 研究開発・商品開発の体制
C25: 技術力・販売力等 | S25: 知的財産権の保有・活用状況
C27: ITに関する投資、活用の状況 | S27: 人材育成の取り組み状況
C28: 1時間当たり付加価値（生産性） | S28: 人材育成の仕組み
C29: 向上に向けた取り組み
B31: 現状認識 | R31: 将来目標
U35: 現状と目標のギャップ
G36: 課題 | R36: 対応策

Sheet 【参照】業種区分 (hidden)
A2: 01_農業 | B2: 0101_農業
A3: 02_建設業 | B3: 0201_建設業
A4: 03_製造業 | B4: 0301_食料品・飼料・飲料製造業 | C4: 0302_化学工業・関連製品製造業 | D4: 0303_鉄鋼業、非鉄金属製造業 | E4: 0304_金属製品製造業 | F4: 0305_一般・電気機械器具製造業 | G4: 0306_その他の製造業
A5: 04_卸売業 | B5: 0401_化学製品卸売業 | C5: 0402_繊維関連製品卸売業 | D5: 0403_食料品卸売業 | E5: 0404_その他の卸売業
A6: 05_小売業 | B6: 0501_小売業
A7: 06_飲食業 | B7: 0601_飲食業
A8: 07_不動産業 | B8: 0701_不動産業
A9: 08_運輸業 | B9: 0801_運輸業
A10: 09_エネルギー | B10: 0901_エネルギー
A11: 10_サービス業 | B11: 1001_物品賃貸業 | C11: 1002_娯楽業 | D11: 1003_広告・調査・情報サービス業 | E11: 1004_事業サービス業 | F11: 1005_専門サービス業 | G11: 1006_その他のサービス業
A12: 11_医療業 | B12: 1101_医療業
A13: 12_保険衛生、廃棄物処理業 | B13: 1201_保険衛生、廃棄物処理業
A14: 13_観光業 | B14: 1301_観光業

Sheet 【参照】企業規模
A2: 事業規模 | C2: =IF(F22=1,"分析対象外",IF(SUM(F15:F20)=1,"中規模事業者",IF(SUM(F10:F13)=1,"小規模事業者","算出不可"))) -> 中規模事業者
A4: 事業規模区分 | B4: 中小企業基本法 中小企業定義 業種区分 | C4: ローカルベンチマーク業種大分類 | D4: 資本金 | E4: 従業員 | F4: 該当フラグ | H4: ロカベン23業種_大分類
A5: 中小規模 | B5: 卸売業 | C5: 04_卸売業 | D5: 1億円以下 | E5: 100人以下 | F5: =IF(AND(【入力】財務分析!D8="04_卸売業",OR(AND(0<【入力】財務分析!$D$12,【入力】財務分析!$D$12<=100000),AND(0<【入力】財務分析!$D$11,0<【入力】財務分析!$D$11<=100))),1,0) -> 0 | H5: 01_農業
B6: 小売業 | C6: 05_小売業、06_飲食業 | D6: 5千万以下 | E6: 50人以下 | F6: =IF(AND(OR(【入力】財務分析!D8="05_小売業",【入力】財務分析!D8="06_飲食業"),OR(AND(0<【入力】財務分析!$D$12,【入力】財務分析!$D$12<=50000),AND(0<【入力】財務分析!$D$11,【入力】財務分析!$D$11<=50))),1,0) -> 0 | H6: 02_建設業
B7: サービス業 | C7: 10_サービス業、11_医療業、12_保健衛生、廃棄物処理業、13_観光業 | D7: 5千万以下 | E7: 100人以下 | F7: =IF(AND(OR(【入力】財務分析!D8="10_サービス業",【入力】財務分析!D8="11_医療業",【入力】財務分析!D8="12_保険衛生、廃棄物処理業",【入力】財務分析!D8="13_観光業"),OR(AND(0<【入力】財務分析!$D$12,【入力】財務分析!$D$12<=50000),AND(0<【入力】財務分析!$D$11,【入力】財務分析!$D$11<=100))),1,0) -> 1 | H7: 03_製造業
B8: 製造業 その他 | C8: 01_農業、02_建設業、03_製造業、07_不動産業、08_運輸業、09_エネルギー | D8: 3億円以下 | E8: 300人以下 | F8: =IF(AND(OR(【入力】財務分析!D8="01_農業",【入力】財務分析!D8="02_建設業",【入力】財務分析!D8="03_製造業",【入力】財務分析!D8="07_不動産業",【入力】財務分析!D8="08_運輸業",【入力】財務分析!D8="09_エネルギー"),OR(AND(0<【入力】財務分析!$D$12,【入力】財務分析!$D$12<=300000),AND(0<【入力】財務分析!$D$11,【入力】財務分析!$D$11<=300))),1,0) -> 0 | H8: 04_卸売業
H9: 05_小売業
A10: 小規模 | B10: 卸売業 | C10: 04_卸売業 | E10: 5人以下 | F10: =IF(AND(F5=1,0<=【入力】財務分析!$D$11,【入力】財務分析!$D$11<=5),1,0) -> 0 | H10: 06_飲食業
B11: 小売業 | C11: 05_小売業、06_飲食業 | E11: 5人以下 | F11: =IF(AND(F6=1,0<=【入力】財務分析!$D$11,【入力】財務分析!$D$11<=5),1,0) -> 0 | H11: 07_不動産業
B12: サービス業 | C12: 10_サービス業、11_医療業、12_保健衛生、廃棄物処理業、13_観光業 | E12: 5人以下 | F12: =IF(AND(F7=1,0<=【入力】財務分析!$D$11,【入力】財務分析!$D$11<=5),1,0) -> 0 | H12: 08_運輸業
B13: 製造業 その他 | C13: 01_農業、02_建設業、03_製造業、07_不動産業、08_運輸業、09_エネルギー | E13: 20人以下 | F13: =IF(AND(F8=1,0<=【入力】財務分析!$D$11,【入力】財務分析!$D$11<=20),1,0) -> 0 | H13: 09_エネルギー
H14: 10_サービス業
A15: 中規模 | B15: 卸売業 | C15: 04_卸売業 | D15: 中小規模該当の企業の内、小規模に該当する企業以外の企業 | F15: =IF(AND(F5=1,F10=0),1,IF(AND(F5=1,F10=1),0,0)) -> 0 | H15: 11_医療業
B16: 小売業 | C16: 05_小売業、06_飲食業 | F16: =IF(AND(F6=1,F11=0),1,IF(AND(F6=1,F11=1),0,0)) -> 0 | H16: 12_保険衛生、廃棄物処理業
B17: サービス業 | C17: 10_サービス業、11_医療業、12_保健衛生、廃棄物処理業、13_観光業 | F17: =IF(AND(F7=1,F12=0),1,IF(AND(F7=1,F12=1),0,0)) -> 1 | H17: 13_観光業
B18: 製造業 その他 | C18: 01_農業、02_建設業、03_製造業、07_不動産業、08_運輸業、09_エネルギー | F18: =IF(AND(F8=1,F13=0),1,IF(AND(F8=1,F13=1),0,0)) -> 0
A20: 中堅企業 | F20: =IF(SUM(F5:F18)+F22=0,1,0) -> 0
A22: 分析対象外 | F22: =IF(OR(【入力】財務分析!D8="エラー_日本標準分類を入力し直して下さい",【入力】財務分析!D8="",AND(OR(【入力】財務分析!$D$11=0,【入力】財務分析!$D$11=""),OR(【入力】財務分析!D12=0,【入力】財務分析!D12=""))),1,0) -> 0

Sheet 【参照】売上増加率基準値
A1: 指標カテゴリ | B1: 大分類 | C1: 小分類 | D1: 事業規模 | E1: 中央値 | F1: 標準偏差 | G1: ⅳ | H1: ⅲ | I1: ⅱ | J1: ⅰ
A2: ①売上増加率 | B2: 01_農業 | C2: 0101_農業 | D2: 中規模事業者 | E2: 0.07928228445 | F2: 0.08793953869 | G2: -0.0489381171 | H2: 0.0480483162 | I2: 0.1110025439 | J2: 0.1876590099
A3: ①売上増加率 | B3: 01_農業 | C3: 0101_農業 | D3: 小規模事業者 | E3: 0.0609645599 | F3: 0.1365226779 | G3: -0.07148102405 | H3: 0.01468550849 | I3: 0.1036470446 | J3: 0.2781813933
A4: ①売上増加率 | B4: 02_建設業 | C4: 0201_建設業 | D4: 中規模事業者 | E4: 0.06914372785 | F4: 0.108401954 | G4: -0.05153825063 | H4: 0.02710624694 | I4: 0.1204017759 | J4: 0.2311579265
A5: ①売上増加率 | B5: 02_建設業 | C5: 0201_建設業 | D5: 小規模事業者 | E5: 0.07141343893 | F5: 0.1599607669 | G5: -0.1012099732 | H5: 0.01245059934 | I5: 0.1399275828 | J5: 0.3078718184
A6: ①売上増加率 | B6: 03_製造業 | C6: 0306_その他の製造業 | D6: 中規模事業者 | E6: 0.02420524486 | F6: 0.08049425496 | G6: -0.06560022091 | H6: -0.004303911867 | I6: 0.05609536917 | J6: 0.1319656266
A7: ①売上増加率 | B7: 03_製造業 | C7: 0306_その他の製造業 | D7: 小規模事業者 | E7: 0.03094768626 | F7: 0.124190894 | G7: -0.08963049103 | H7: -0.008612727741 | I7: 0.08032115883 | J7: 0.2110534118
A8: ①売上増加率 | B8: 03_製造業 | C8: 0301_食料品・飼料・飲料製造業 | D8: 中規模事業者 | E8: 0.02308154476 | F8: 0.0762706146 | G8: -0.0491603816 | H8: -0.00334483798 | I8: 0.05175586636 | J8: 0.1201923692
A9: ①売上増加率 | B9: 03_製造業 | C9: 0301_食料品・飼料・飲料製造業 | D9: 小規模事業者 | E9: 0.02739011016 | F9: 0.1171608999 | G9: -0.06835072837 | H9: -0.007722039946 | I9: 0.0689434758 | J9: 0.2053823864
A10: ①売上増加率 | B10: 03_製造業 | C10: 0302_化学工業・関連製品製造業 | D10: 中規模事業者 | E10: 0.01295412635 | F10: 0.06391746784 | G10: -0.05962311709 | H10: -0.004963666667 | I10: 0.03493908291 | J10: 0.09530164653
A11: ①売上増加率 | B11: 03_製造業 | C11: 0302_化学工業・関連製品製造業 | D11: 小規模事業者 | E11: 0.006439202097 | F11: 0.1042646544 | G11: -0.08249323512 | H11: -0.01758889526 | I11: 0.05235392035 | J11: 0.1494735788
A12: ①売上増加率 | B12: 03_製造業 | C12: 0303_鉄鋼業、非鉄金属製造業 | D12: 中規模事業者 | E12: 0.01721995692 | F12: 0.07585715056 | G12: -0.06223528468 | H12: -0.01325874508 | I12: 0.04596319496 | J12: 0.1158053137
A13: ①売上増加率 | B13: 03_製造業 | C13: 0303_鉄鋼業、非鉄金属製造業 | D13: 小規模事業者 | E13: 0.02063273246 | F13: 0.08810109549 | G13: -0.08534479892 | H13: -0.01396686261 | I13: 0.05457145809 | J13: 0.1293317958
A14: ①売上増加率 | B14: 03_製造業 | C14: 0304_金属製品製造業 | D14: 中規模事業者 | E14: 0.03161414788 | F14: 0.08345804067 | G14: -0.06578658948 | H14: -0.0003393009112 | I14: 0.06480185013 | J14: 0.1469959386
A15: ①売上増加率 | B15: 03_製造業 | C15: 0304_金属製品製造業 | D15: 小規模事業者 | E15: 0.05028546012 | F15: 0.121310433 | G15: -0.07732458416 | H15: 0.009096702323 | I15: 0.09797188187 | J15: 0.2206452589
A16: ①売上増加率 | B16: 03_製造業 | C16: 0305_一般・電気機械器具製造業 | D16: 中規模事業者 | E16: 0.04048857136 | F16: 0.08825029665 | G16: -0.0699571902 | H16: 0.006356808526 | I16: 0.07507435562 | J16: 0.1567526723
A17: ①売上増加率 | B17: 03_製造業 | C17: 0305_一般・電気機械器具製造業 | D17: 小規模事業者 | E17: 0.04467197043 | F17: 0.1394753972 | G17: -0.1007679755 | H17: -0.0005067294659 | I17: 0.1040820316 | J17: 0.2450139406
A18: ①売上増加率 | B18: 不使用 | C18: 不使用 | D18: 中規模事業者
A19: ①売上増加率 | B19: 不使用 | C19: 不使用 | D19: 小規模事業者
A20: ①売上増加率 | B20: 04_卸売業 | C20: 0404_その他の卸売業 | D20: 中規模事業者 | E20: 0.02459794373 | F20: 0.08657364485 | G20: -0.06740958383 | H20: -0.003866612539 | I20: 0.05599304472 | J20: 0.1383842653
A21: ①売上増加率 | B21: 04_卸売業 | C21: 0404_その他の卸売業 | D21: 小規模事業者 | E21: 0.0270582323 | F21: 0.1538228629 | G21: -0.1105228148 | H21: -0.01349087266 | I21: 0.07970995232 | J21: 0.2442663738
A22: ①売上増加率 | B22: 04_卸売業 | C22: 0401_化学製品卸売業 | D22: 中規模事業者 | E22: 0.01337992483 | F22: 0.06923439244 | G22: -0.05420835135 | H22: -0.00743818743 | I22: 0.03844231494 | J22: 0.1007588602
A23: ①売上増加率 | B23: 04_卸売業 | C23: 0401_化学製品卸売業 | D23: 小規模事業者 | E23: 0.008843344206 | F23: 0.1824811562 | G23: -0.09946991192 | H23: -0.0203098212 | I23: 0.0457012889 | J23: 0.2189773876
A24: ①売上増加率 | B24: 04_卸売業 | C24: 0402_繊維関連製品卸売業 | D24: 中規模事業者 | E24: 0.00576474733 | F24: 0.08628678338 | G24: -0.09073372634 | H24: -0.02443439305 | I24: 0.04064383635 | J24: 0.132146031
A25: ①売上増加率 | B25: 04_卸売業 | C25: 0402_繊維関連製品卸売業 | D25: 小規模事業者 | E25: 0.02228850941 | F25: 0.1758838736 | G25: -0.1369034006 | H25: -0.03152550785 | I25: 0.08469322449 | J25: 0.2777913557
A26: ①売上増加率 | B26: 04_卸売業 | C26: 0403_食料品卸売業 | D26: 中規模事業者 | E26: 0.02149194703 | F26: 0.08622815848 | G26: -0.07067674015 | H26: -0.005171816166 | I26: 0.05133682179 | J26: 0.1360752099
A27: ①売上増加率 | B27: 04_卸売業 | C27: 0403_食料品卸売業 | D27: 小規模事業者 | E27: 0.02368137658 | F27: 0.1433088217 | G27: -0.1177597761 | H27: -0.01576009099 | I27: 0.08073873721 | J27: 0.2254991815
A28: ①売上増加率 | B28: 不使用 | C28: 不使用 | D28: 中規模事業者
A29: ①売上増加率 | B29: 不使用 | C29: 不使用 | D29: 小規模事業者
A30: ①売上増加率 | B30: 05_小売業 | C30: 0501_小売業 | D30: 中規模事業者 | E30: 0.01088978233 | F30: 0.09784145833 | G30: -0.0721597134 | H30: -0.01501433602 | I30: 0.04192583315 | J30: 0.1492870852
A31: ①売上増加率 | B31: 05_小売業 | C31: 0501_小売業 | D31: 小規模事業者 | E31: 0.005302267566 | F31: 0.1308073289 | G31: -0.1359253822 | H31: -0.03779567696 | I31: 0.05252192726 | J31: 0.1854556141
A32: ①売上増加率 | B32: 06_飲食業 | C32: 0601_飲食業 | D32: 中規模事業者 | E32: 0.04722947695 | F32: 0.1216754435 | G32: -0.05674098723 | H32: 0.01291136813 | I32: 0.103342767 | J32: 0.2440607478
A33: ①売上増加率 | B33: 06_飲食業 | C33: 0601_飲食業 | D33: 小規模事業者 | E33: 0.02625102708 | F33: 0.154168408 | G33: -0.08826631338 | H33: 0.000995443048 | I33: 0.05996097306 | J33: 0.2546446029
A34: ①売上増加率 | B34: 07_不動産業 | C34: 0701_不動産業 | D34: 中規模事業者 | E34: 0.04736387752 | F34: 0.1318719779 | G34: -0.06194564009 | H34: 0.008274574908 | I34: 0.108228007 | J34: 0.279024485
A35: ①売上増加率 | B35: 07_不動産業 | C35: 0701_不動産業 | D35: 小規模事業者 | E35: 0.07479281717 | F35: 0.2192492069 | G35: -0.1189697678 | H35: 0.002754702863 | I35: 0.1803098269 | J35: 0.4455551315
A36: ①売上増加率 | B36: 08_運輸業 | C36: 0801_運輸業 | D36: 中規模事業者 | E36: 0.03230431428 | F36: 0.08919270534 | G36: -0.04572951822 | H36: 0.007107698145 | I36: 0.06482588932 | J36: 0.154041257
A37: ①売上増加率 | B37: 08_運輸業 | C37: 0801_運輸業 | D37: 小規模事業者 | E37: 0.04195233735 | F37: 0.1583576966 | G37: -0.07403431226 | H37: 0.0004408402752 | I37: 0.1081615718 | J37: 0.2883573949
A38: ①売上増加率 | B38: 09_エネルギー | C38: 0901_エネルギー | D38: 中規模事業者 | E38: 0.0006864012738 | F38: 0.0999771479 | G38: -0.0728567119 | H38: -0.007301332026 | I38: 0.01770861114 | J38: 0.09331142651
A39: ①売上増加率 | B39: 09_エネルギー | C39: 0901_エネルギー | D39: 小規模事業者 | E39: 0.01441717336 | F39: 0.178199258 | G39: -0.05395259971 | H39: 0.0003919650691 | I39: 0.0307222675 | J39: 0.447362535
A40: ①売上増加率 | B40: 10_サービス業 | C40: 1006_その他のサービス業 | D40: 中規模事業者 | E40: 0.04816170626 | F40: 0.1147007791 | G40: -0.05771574507 | H40: 0.01297910533 | I40: 0.09342626474 | J40: 0.2233784909
A41: ①売上増加率 | B41: 10_サービス業 | C41: 1006_その他のサービス業 | D41: 小規模事業者 | E41: 0.04665351218 | F41: 0.1748936672 | G41: -0.1246510425 | H41: -0.006895843369 | I41: 0.1121491585 | J41: 0.3117147938
A42: ①売上増加率 | B42: 10_サービス業 | C42: 1001_物品賃貸業 | D42: 中規模事業者 | E42: 0.06100823798 | F42: 0.08567222707 | G42: -0.03959455695 | H42: 0.02613058123 | I42: 0.09660694051 | J42: 0.1757959162
A43: ①売上増加率 | B43: 10_サービス業 | C43: 1001_物品賃貸業 | D43: 小規模事業者 | E43: 0.07599285088 | F43: 0.1290943249 | G43: -0.06808435998 | H43: 0.0258986155 | I43: 0.1369320563 | J43: 0.2961783487
A44: ①売上増加率 | B44: 10_サービス業 | C44: 1002_娯楽業 | D44: 中規模事業者 | E44: -0.0009663228888 | F44: 0.1006769533 | G44: -0.1208985071 | H44: -0.02837162477 | I44: 0.0297936004 | J44: 0.1246278334
A45: ①売上増加率 | B45: 10_サービス業 | C45: 1002_娯楽業 | D45: 小規模事業者 | E45: 0.01677541976 | F45: 0.1379725867 | G45: -0.08458163788 | H45: -0.01864861306 | I45: 0.09331014109 | J45: 0.2484400856
A46: ①売上増加率 | B46: 10_サービス業 | C46: 1003_広告・調査・情報サービス業 | D46: 中規模事業者 | E46: 0.06170858552 | F46: 0.1248186 | G46: -0.05389709523 | H46: 0.02397842082 | I46: 0.1134046081 | J46: 0.2589374733
A47: ①売上増加率 | B47: 10_サービス業 | C47: 1003_広告・調査・情報サービス業 | D47: 小規模事業者 | E47: 0.07066083075 | F47: 0.211667608 | G47: -0.1508579872 | H47: -0.01036926215 | I47: 0.1502978285 | J47: 0.3692907269
A48: ①売上増加率 | B48: 10_サービス業 | C48: 1004_事業サービス業 | D48: 中規模事業者 | E48: 0.04680867058 | F48: 0.1143518362 | G48: -0.05699817398 | H48: 0.01156292625 | I48: 0.09078085928 | J48: 0.2175559204
A49: ①売上増加率 | B49: 10_サービス業 | C49: 1004_事業サービス業 | D49: 小規模事業者 | E49: 0.0329216959 | F49: 0.1692399866 | G49: -0.1258373824 | H49: -0.01690020403 | I49: 0.08901379696 | J49: 0.3098017175
A50: ①売上増加率 | B50: 10_サービス業 | C50: 1005_専門サービス業 | D50: 中規模事業者 | E50: 0.06793215582 | F50: 0.1231825166 | G50: -0.04315395003 | H50: 0.02563713173 | I50: 0.1130607739 | J50: 0.2709267017
A51: ①売上増加率 | B51: 10_サービス業 | C51: 1005_専門サービス業 | D51: 小規模事業者 | E51: 0.05951798526 | F51: 0.1834144646 | G51: -0.1266934807 | H51: 0.002122516979 | I51: 0.1564821911 | J51: 0.3546858552
A52: ①売上増加率 | B52: 不使用 | C52: 不使用 | D52: 中規模事業者
A53: ①売上増加率 | B53: 不使用 | C53: 不使用 | D53: 小規模事業者
A54: ①売上増加率 | B54: 11_医療業 | C54: 1101_医療業 | D54: 中規模事業者 | E54: 0.01442504517 | F54: 0.0716826916 | G54: -0.03936222457 | H54: -0.001238126441 | I54: 0.03585584482 | J54: 0.1086037653
A55: ①売上増加率 | B55: 11_医療業 | C55: 1101_医療業 | D55: 小規模事業者 | E55: -0.001270577272 | F55: 0.1036417845 | G55: -0.07931037471 | H55: -0.0342728431 | I55: 0.02736072622 | J55: 0.1748675943
A56: ①売上増加率 | B56: 12_保険衛生、廃棄物処理業 | C56: 1201_保険衛生、廃棄物処理業 | D56: 中規模事業者 | E56: 0.04163094688 | F56: 0.08991135799 | G56: -0.0468006216 | H56: 0.01572750814 | I56: 0.07555090683 | J56: 0.1708930736
A57: ①売上増加率 | B57: 12_保険衛生、廃棄物処理業 | C57: 1201_保険衛生、廃棄物処理業 | D57: 小規模事業者 | E57: 0.03497411612 | F57: 0.1630511793 | G57: -0.08773826656 | H57: -0.001542883856 | I57: 0.1046939454 | J57: 0.292125412
A58: ①売上増加率 | B58: 13_観光業 | C58: 1301_観光業 | D58: 中規模事業者 | E58: 0.03393972438 | F58: 0.09714553908 | G58: -0.04079553645 | H58: 0.01300276773 | I58: 0.07640030651 | J58: 0.2061577799
A59: ①売上増加率 | B59: 13_観光業 | C59: 1301_観光業 | D59: 小規模事業者 | E59: 0.06682435209 | F59: 0.2267918423 | G59: -0.09675951153 | H59: 0.0218381197 | I59: 0.1272522377 | J59: 0.3777120968

Sheet 【参照】営業利益率基準値
A1: 指標カテゴリ | B1: 大分類 | C1: 小分類 | D1: 事業規模 | E1: 中央値 | F1: 標準偏差 | G1: ⅳ | H1: ⅲ | I1: ⅱ | J1: ⅰ
A2: ②営業利益率 | B2: 01_農業 | C2: 0101_農業 | D2: 中規模事業者 | E2: 0.02055556264 | F2: 0.03915660547 | G2: -0.03662485926 | H2: 0.004668313526 | I2: 0.03845539265 | J2: 0.07354705505
A3: ②営業利益率 | B3: 01_農業 | C3: 0101_農業 | D3: 小規模事業者 | E3: 0.003263618115 | F3: 0.07136491006 | G3: -0.1175902727 | H3: -0.02438474126 | I3: 0.02589401979 | J3: 0.07089787973
A4: ②営業利益率 | B4: 02_建設業 | C4: 0201_建設業 | D4: 中規模事業者 | E4: 0.02616661346 | F4: 0.03263308317 | G4: -0.008275829219 | H4: 0.01440440734 | I4: 0.04107191959 | J4: 0.07621725315
A5: ②営業利益率 | B5: 02_建設業 | C5: 0201_建設業 | D5: 小規模事業者 | E5: 0.01488572274 | F5: 0.04483700266 | G5: -0.04890605467 | H5: 0.002967290057 | I5: 0.03056623955 | J5: 0.06806464154
A6: ②営業利益率 | B6: 03_製造業 | C6: 0306_その他の製造業 | D6: 中規模事業者 | E6: 0.02354676975 | F6: 0.03896079338 | G6: -0.01853274504 | H6: 0.01076135639 | I6: 0.04115061692 | J6: 0.08388248264
A7: ②営業利益率 | B7: 03_製造業 | C7: 0306_その他の製造業 | D7: 小規模事業者 | E7: 0.01653473052 | F7: 0.04940806718 | G7: -0.0543686891 | H7: 0.001785302582 | I7: 0.03377274489 | J7: 0.07540840649
A8: ②営業利益率 | B8: 03_製造業 | C8: 0301_食料品・飼料・飲料製造業 | D8: 中規模事業者 | E8: 0.01352228974 | F8: 0.03396149632 | G8: -0.02035900346 | H8: 0.00474071189 | I8: 0.02560261099 | J8: 0.06546587535
A9: ②営業利益率 | B9: 03_製造業 | C9: 0301_食料品・飼料・飲料製造業 | D9: 小規模事業者 | E9: 0.009550376126 | F9: 0.04321952284 | G9: -0.05318448433 | H9: -0.002599374128 | I9: 0.02119031889 | J9: 0.04835094248
A10: ②営業利益率 | B10: 03_製造業 | C10: 0302_化学工業・関連製品製造業 | D10: 中規模事業者 | E10: 0.03013481471 | F10: 0.04283624572 | G10: -0.01294765701 | H10: 0.01427768567 | I10: 0.05274534822 | J10: 0.1023807562
A11: ②営業利益率 | B11: 03_製造業 | C11: 0302_化学工業・関連製品製造業 | D11: 小規模事業者 | E11: 0.02234175061 | F11: 0.04904841131 | G11: -0.04135125972 | H11: 0.008793765759 | I11: 0.03945699461 | J11: 0.08601660013
A12: ②営業利益率 | B12: 03_製造業 | C12: 0303_鉄鋼業、非鉄金属製造業 | D12: 中規模事業者 | E12: 0.02034802724 | F12: 0.03465911734 | G12: -0.01880217808 | H12: 0.008265137789 | I12: 0.03558741566 | J12: 0.07293784097
A13: ②営業利益率 | B13: 03_製造業 | C13: 0303_鉄鋼業、非鉄金属製造業 | D13: 小規模事業者 | E13: 0.01254303475 | F13: 0.04246327897 | G13: -0.04254745449 | H13: 0.001889437317 | I13: 0.0306146089 | J13: 0.07499854143
A14: ②営業利益率 | B14: 03_製造業 | C14: 0304_金属製品製造業 | D14: 中規模事業者 | E14: 0.02870458325 | F14: 0.0393657622 | G14: -0.01699610838 | H14: 0.01385479801 | I14: 0.04518763971 | J14: 0.0868605211
A15: ②営業利益率 | B15: 03_製造業 | C15: 0304_金属製品製造業 | D15: 小規模事業者 | E15: 0.02113410863 | F15: 0.0492701941 | G15: -0.04996152851 | H15: 0.004273449718 | I15: 0.04043106744 | J15: 0.08359980188
A16: ②営業利益率 | B16: 03_製造業 | C16: 0305_一般・電気機械器具製造業 | D16: 中規模事業者 | E16: 0.03132307629 | F16: 0.04129794934 | G16: -0.0164814109 | H16: 0.01639002055 | I16: 0.05177916443 | J16: 0.09459809303
A17: ②営業利益率 | B17: 03_製造業 | C17: 0305_一般・電気機械器具製造業 | D17: 小規模事業者 | E17: 0.02093001437 | F17: 0.05447116795 | G17: -0.06401262602 | H17: 0.003552767267 | I17: 0.04055560856 | J17: 0.08446110216
A18: ②営業利益率 | B18: 不使用 | C18: 不使用 | D18: 中規模事業者
A19: ②営業利益率 | B19: 不使用 | C19: 不使用 | D19: 小規模事業者
A20: ②営業利益率 | B20: 04_卸売業 | C20: 0404_その他の卸売業 | D20: 中規模事業者 | E20: 0.01247938521 | F20: 0.02577516023 | G20: -0.01097002156 | H20: 0.005806458484 | I20: 0.02161021315 | J20: 0.04752285582
A21: ②営業利益率 | B21: 04_卸売業 | C21: 0404_その他の卸売業 | D21: 小規模事業者 | E21: 0.007960468794 | F21: 0.03513610304 | G21: -0.03616001145 | H21: 0.001036856535 | I21: 0.01742431531 | J21: 0.04265937518
A22: ②営業利益率 | B22: 04_卸売業 | C22: 0401_化学製品卸売業 | D22: 中規模事業者 | E22: 0.01384788526 | F22: 0.02316824485 | G22: -0.003723682596 | H22: 0.00748869596 | I22: 0.02145071804 | J22: 0.04603776738
A23: ②営業利益率 | B23: 04_卸売業 | C23: 0401_化学製品卸売業 | D23: 小規模事業者 | E23: 0.007725597123 | F23: 0.03157514646 | G23: -0.03207191947 | H23: 0.001433352154 | I23: 0.01766846526 | J23: 0.04211961441
A24: ②営業利益率 | B24: 04_卸売業 | C24: 0402_繊維関連製品卸売業 | D24: 中規模事業者 | E24: 0.01304717241 | F24: 0.03055206579 | G24: -0.02193378862 | H24: 0.005603448228 | I24: 0.02354704921 | J24: 0.05250717939
A25: ②営業利益率 | B25: 04_卸売業 | C25: 0402_繊維関連製品卸売業 | D25: 小規模事業者 | E25: 0.007124355658 | F25: 0.04029375092 | G25: -0.05676982241 | H25: -0.002347521338 | I25: 0.01891113561 | J25: 0.04704661897
A26: ②営業利益率 | B26: 04_卸売業 | C26: 0403_食料品卸売業 | D26: 中規模事業者 | E26: 0.005657261228 | F26: 0.02028826097 | G26: -0.01439877976 | H26: 0.001594136639 | I26: 0.01096796983 | J26: 0.02810156012
A27: ②営業利益率 | B27: 04_卸売業 | C27: 0403_食料品卸売業 | D27: 小規模事業者 | E27: 0.005797215893 | F27: 0.02787819497 | G27: -0.02737393272 | H27: 0.0009487211238 | I27: 0.01204017967 | J27: 0.03054861786
A28: ②営業利益率 | B28: 不使用 | C28: 不使用 | D28: 中規模事業者
A29: ②営業利益率 | B29: 不使用 | C29: 不使用 | D29: 小規模事業者
A30: ②営業利益率 | B30: 05_小売業 | C30: 0501_小売業 | D30: 中規模事業者 | E30: 0.01006969328 | F30: 0.02790434706 | G30: -0.01900860131 | H30: 0.003470586735 | I30: 0.02004658334 | J30: 0.04870816853
A31: ②営業利益率 | B31: 05_小売業 | C31: 0501_小売業 | D31: 小規模事業者 | E31: 0.004806374173 | F31: 0.04585542684 | G31: -0.07255905281 | H31: -0.009728773584 | I31: 0.01459850558 | J31: 0.0429201599
A32: ②営業利益率 | B32: 06_飲食業 | C32: 0601_飲食業 | D32: 中規模事業者 | E32: 0.01701896757 | F32: 0.03089916596 | G32: -0.01579089603 | H32: 0.007315058257 | I32: 0.03129099477 | J32: 0.06195236069
A33: ②営業利益率 | B33: 06_飲食業 | C33: 0601_飲食業 | D33: 小規模事業者 | E33: 0.00814363843 | F33: 0.05547898351 | G33: -0.08315098625 | H33: -0.0157603514 | I33: 0.02258166128 | J33: 0.06038238989
A34: ②営業利益率 | B34: 07_不動産業 | C34: 0701_不動産業 | D34: 中規模事業者 | E34: 0.05048701304 | F34: 0.04188051271 | G34: 0.006393198603 | H34: 0.03139779147 | I34: 0.0740011735 | J34: 0.1216529962
A35: ②営業利益率 | B35: 07_不動産業 | C35: 0701_不動産業 | D35: 小規模事業者 | E35: 0.03900308963 | F35: 0.0484041574 | G35: -0.01780540972 | H35: 0.02313227593 | I35: 0.06082927466 | J35: 0.111556775
A36: ②営業利益率 | B36: 08_運輸業 | C36: 0801_運輸業 | D36: 中規模事業者 | E36: 0.01495880789 | F36: 0.02985476798 | G36: -0.01882770914 | H36: 0.006117926737 | I36: 0.02730270136 | J36: 0.05577288126
A37: ②営業利益率 | B37: 08_運輸業 | C37: 0801_運輸業 | D37: 小規模事業者 | E37: 0.008419783095 | F37: 0.03988081069 | G37: -0.05567670669 | H37: -0.00187629632 | I37: 0.02039170649 | J37: 0.05301254344
A38: ②営業利益率 | B38: 09_エネルギー | C38: 0901_エネルギー | D38: 中規模事業者 | E38: 0.03287693832 | F38: 0.03455007608 | G38: -0.001319029328 | H38: 0.02299260734 | I38: 0.04190755431 | J38: 0.07117335708
A39: ②営業利益率 | B39: 09_エネルギー | C39: 0901_エネルギー | D39: 小規模事業者 | E39: 0.05284544237 | F39: 0.04036747229 | G39: 0.003128607155 | H39: 0.04083134365 | I39: 0.08657402548 | J39: 0.1096101993
A40: ②営業利益率 | B40: 10_サービス業 | C40: 1006_その他のサービス業 | D40: 中規模事業者 | E40: 0.02573952533 | F40: 0.0384839118 | G40: -0.01477597739 | H40: 0.01295528141 | I40: 0.04284656364 | J40: 0.08676879236
A41: ②営業利益率 | B41: 10_サービス業 | C41: 1006_その他のサービス業 | D41: 小規模事業者 | E41: 0.01371680597 | F41: 0.05442953473 | G41: -0.06653489713 | H41: -0.0009936327935 | I41: 0.030776938 | J41: 0.08209395465
A42: ②営業利益率 | B42: 10_サービス業 | C42: 1001_物品賃貸業 | D42: 中規模事業者 | E42: 0.03603548009 | F42: 0.04007348727 | G42: -0.006271667057 | H42: 0.0208874555 | I42: 0.05567575451 | J42: 0.09806623154
A43: ②営業利益率 | B43: 10_サービス業 | C43: 1001_物品賃貸業 | D43: 小規模事業者 | E43: 0.02123771439 | F43: 0.04276347984 | G43: -0.03413684203 | H43: 0.007297607213 | I43: 0.03142128074 | J43: 0.07963665886
A44: ②営業利益率 | B44: 10_サービス業 | C44: 1002_娯楽業 | D44: 中規模事業者 | E44: 0.02018067148 | F44: 0.03776778407 | G44: -0.03104411678 | H44: 0.007761303568 | I44: 0.03429031558 | J44: 0.06632851386
A45: ②営業利益率 | B45: 10_サービス業 | C45: 1002_娯楽業 | D45: 小規模事業者 | E45: 0.01325569179 | F45: 0.04790108654 | G45: -0.07192948825 | H45: 0.001228870809 | I45: 0.02414224368 | J45: 0.07624809047
A46: ②営業利益率 | B46: 10_サービス業 | C46: 1003_広告・調査・情報サービス業 | D46: 中規模事業者 | E46: 0.02376030543 | F46: 0.03519990739 | G46: -0.008371825051 | H46: 0.01315415644 | I46: 0.03982708201 | J46: 0.07999047666
A47: ②営業利益率 | B47: 10_サービス業 | C47: 1003_広告・調査・情報サービス業 | D47: 小規模事業者 | E47: 0.01208261538 | F47: 0.05727604883 | G47: -0.08220647474 | H47: -0.001674464225 | I47: 0.02890812 | J47: 0.08063574612
A48: ②営業利益率 | B48: 10_サービス業 | C48: 1004_事業サービス業 | D48: 中規模事業者 | E48: 0.0220776419 | F48: 0.03470578613 | G48: -0.01256960206 | H48: 0.01082404074 | I48: 0.03713199096 | J48: 0.07658151228
A49: ②営業利益率 | B49: 10_サービス業 | C49: 1004_事業サービス業 | D49: 小規模事業者 | E49: 0.01325080746 | F49: 0.04964662812 | G49: -0.05966270585 | H49: -0.003465456653 | I49: 0.03103139264 | J49: 0.07390428253
A50: ②営業利益率 | B50: 10_サービス業 | C50: 1005_専門サービス業 | D50: 中規模事業者 | E50: 0.03604217371 | F50: 0.04037944777 | G50: -0.01077660436 | H50: 0.02025361609 | I50: 0.05562831308 | J50: 0.09991464112
A51: ②営業利益率 | B51: 10_サービス業 | C51: 1005_専門サービス業 | D51: 小規模事業者 | E51: 0.01756779536 | F51: 0.06385301036 | G51: -0.07911602573 | H51: 0.0003649411283 | I51: 0.03976770396 | J51: 0.09912904662
A52: ②営業利益率 | B52: 不使用 | C52: 不使用 | D52: 中規模事業者
A53: ②営業利益率 | B53: 不使用 | C53: 不使用 | D53: 小規模事業者
A54: ②営業利益率 | B54: 11_医療業 | C54: 1101_医療業 | D54: 中規模事業者 | E54: 0.01934079476 | F54: 0.04564462244 | G54: -0.0374957922 | H54: 0.002005218867 | I54: 0.03926213227 | J54: 0.09259336622
A55: ②営業利益率 | B55: 11_医療業 | C55: 1101_医療業 | D55: 小規模事業者 | E55: 0.0008361603571 | F55: 0.06220735013 | G55: -0.06924426086 | H55: -0.01592537425 | I55: 0.02214511844 | J55: 0.08965437057
A56: ②営業利益率 | B56: 12_保険衛生、廃棄物処理業 | C56: 1201_保険衛生、廃棄物処理業 | D56: 中規模事業者 | E56: 0.02962498346 | F56: 0.04291615289 | G56: -0.01311924066 | H56: 0.01469664525 | I56: 0.05272432024 | J56: 0.1036596026
A57: ②営業利益率 | B57: 12_保険衛生、廃棄物処理業 | C57: 1201_保険衛生、廃棄物処理業 | D57: 小規模事業者 | E57: 0.01210885066 | F57: 0.05634347004 | G57: -0.07129895169 | H57: -0.004359960578 | I57: 0.03628923852 | J57: 0.0837103151
A58: ②営業利益率 | B58: 13_観光業 | C58: 1301_観光業 | D58: 中規模事業者 | E58: 0.02833026559 | F58: 0.04452516673 | G58: -0.01940513494 | H58: 0.008464293133 | I58: 0.05164942205 | J58: 0.09784018034
A59: ②営業利益率 | B59: 13_観光業 | C59: 1301_観光業 | D59: 小規模事業者 | E59: 0.008127783243 | F59: 0.05047243289 | G59: -0.05980935125 | H59: 0.0003415539823 | I59: 0.02702752569 | J59: 0.07900523862

Sheet 【参照】労働生産性基準値
A1: 指標カテゴリ | B1: 大分類 | C1: 小分類 | D1: 事業規模 | E1: 中央値 | F1: 標準偏差 | G1: ⅳ | H1: ⅲ | I1: ⅱ | J1: ⅰ
A2: ③労働生産性（千円） | B2: 01_農業 | C2: 0101_農業 | D2: 中規模事業者 | E2: 548.3333333 | F2: 2120.694344 | G2: -801.627451 | H2: 153.6653415 | I2: 1513.048485 | J2: 4853.961905
A3: ③労働生産性（千円） | B3: 01_農業 | C3: 0101_農業 | D3: 小規模事業者 | E3: 157.4 | F3: 2886.90319 | G3: -2484.757143 | H3: -403.1481481 | I3: 599.2240741 | J3: 2427
A4: ③労働生産性（千円） | B4: 02_建設業 | C4: 0201_建設業 | D4: 中規模事業者 | E4: 1017.32263 | F4: 1754.39477 | G4: -141.2380952 | H4: 498.3111111 | I4: 1774.559524 | J4: 3807.282051
A5: ③労働生産性（千円） | B5: 02_建設業 | C5: 0201_建設業 | D5: 小規模事業者 | E5: 522.4666667 | F5: 1961.725826 | G5: -914.2314815 | H5: 127.8888889 | I5: 1149.438228 | J5: 3236
A6: ③労働生産性（千円） | B6: 03_製造業 | C6: 0306_その他の製造業 | D6: 中規模事業者 | E6: 681.8636371 | F6: 1666.826863 | G6: -415.0348788 | H6: 284.9578369 | I6: 1303.55 | J6: 3283.273995
A7: ③労働生産性（千円） | B7: 03_製造業 | C7: 0306_その他の製造業 | D7: 小規模事業者 | E7: 533.4358974 | F7: 2063.653732 | G7: -1202.126984 | H7: 99.07017544 | I7: 1160.726852 | J7: 3226.622222
A8: ③労働生産性（千円） | B8: 03_製造業 | C8: 0301_食料品・飼料・飲料製造業 | D8: 中規模事業者 | E8: 541.2105072 | F8: 1590.215325 | G8: -480.2115556 | H8: 206.2213328 | I8: 1224.255952 | J8: 3088.264444
A9: ③労働生産性（千円） | B9: 03_製造業 | C9: 0301_食料品・飼料・飲料製造業 | D9: 小規模事業者 | E9: 481.8333333 | F9: 2244.060541 | G9: -1483.415152 | H9: -30.9 | I9: 1147.333333 | J9: 3521.655556
A10: ③労働生産性（千円） | B10: 03_製造業 | C10: 0302_化学工業・関連製品製造業 | D10: 中規模事業者 | E10: 1164 | F10: 2430.709554 | G10: -314.8262287 | H10: 528.9722222 | I10: 2188.390332 | J10: 5349.572545
A11: ③労働生産性（千円） | B11: 03_製造業 | C11: 0302_化学工業・関連製品製造業 | D11: 小規模事業者 | E11: 838.705653 | F11: 3002.818686 | G11: -1100.666667 | H11: 355.8666667 | I11: 1599.166667 | J11: 4771.177778
A12: ③労働生産性（千円） | B12: 03_製造業 | C12: 0303_鉄鋼業、非鉄金属製造業 | D12: 中規模事業者 | E12: 846.2606641 | F12: 1915.421477 | G12: -552.072168 | H12: 320.7550245 | I12: 1552.565657 | J12: 3769.92381
A13: ③労働生産性（千円） | B13: 03_製造業 | C13: 0303_鉄鋼業、非鉄金属製造業 | D13: 小規模事業者 | E13: 527.3071429 | F13: 2729.053699 | G13: -933.5019841 | H13: 96.19444444 | I13: 1365.208333 | J13: 4677.277778
A14: ③労働生産性（千円） | B14: 03_製造業 | C14: 0304_金属製品製造業 | D14: 中規模事業者 | E14: 702.5874289 | F14: 1524.920612 | G14: -351.7924814 | H14: 302.4646816 | I14: 1264.441667 | J14: 2883.314915
A15: ③労働生産性（千円） | B15: 03_製造業 | C15: 0304_金属製品製造業 | D15: 小規模事業者 | E15: 529.4949634 | F15: 1692.698273 | G15: -826.3148148 | H15: 141.3904762 | I15: 1137.466667 | J15: 3072.733333
A16: ③労働生産性（千円） | B16: 03_製造業 | C16: 0305_一般・電気機械器具製造業 | D16: 中規模事業者 | E16: 783.0452407 | F16: 1664.968029 | G16: -371.7291667 | H16: 352.0755583 | I16: 1466.18454 | J16: 3400.574066
A17: ③労働生産性（千円） | B17: 03_製造業 | C17: 0305_一般・電気機械器具製造業 | D17: 小規模事業者 | E17: 602.5575397 | F17: 2076.468219 | G17: -1278.194444 | H17: 125.2301587 | I17: 1225.433333 | J17: 3126.381944
A18: ③労働生産性（千円） | B18: 不使用 | C18: 不使用 | D18: 中規模事業者
A19: ③労働生産性（千円） | B19: 不使用 | C19: 不使用 | D19: 小規模事業者
A20: ③労働生産性（千円） | B20: 04_卸売業 | C20: 0404_その他の卸売業 | D20: 中規模事業者 | E20: 938.2480047 | F20: 2042.942474 | G20: -383.8421053 | H20: 422.7245273 | I20: 1729.722222 | J20: 4268.943417
A21: ③労働生産性（千円） | B21: 04_卸売業 | C21: 0404_その他の卸売業 | D21: 小規模事業者 | E21: 842.1666667 | F21: 3039.91523 | G21: -1453 | H21: 204 | I21: 1899.933333 | J21: 5721.666667
A22: ③労働生産性（千円） | B22: 04_卸売業 | C22: 0401_化学製品卸売業 | D22: 中規模事業者 | E22: 1321.081124 | F22: 2462.607123 | G22: -231.5 | H22: 622 | I22: 2230.859025 | J22: 5739.633427
A23: ③労働生産性（千円） | B23: 04_卸売業 | C23: 0401_化学製品卸売業 | D23: 小規模事業者 | E23: 967.2777778 | F23: 3609.178864 | G23: -1495.333333 | H23: 248.6666667 | I23: 2328.233333 | J23: 5798.222222
A24: ③労働生産性（千円） | B24: 04_卸売業 | C24: 0402_繊維関連製品卸売業 | D24: 中規模事業者 | E24: 832.9796296 | F24: 2206.383021 | G24: -595.6944444 | H24: 392.1342593 | I24: 1652.74183 | J24: 4537.035714
A25: ③労働生産性（千円） | B25: 04_卸売業 | C25: 0402_繊維関連製品卸売業 | D25: 小規模事業者 | E25: 647.1944444 | F25: 2945.055299 | G25: -1857 | H25: 116.1666667 | I25: 1603.666667 | J25: 4977.133333
A26: ③労働生産性（千円） | B26: 04_卸売業 | C26: 0403_食料品卸売業 | D26: 中規模事業者 | E26: 545 | F26: 1780.59199 | G26: -726.5111111 | H26: 189.1144689 | I26: 1133.164819 | J26: 3341.650877
A27: ③労働生産性（千円） | B27: 04_卸売業 | C27: 0403_食料品卸売業 | D27: 小規模事業者 | E27: 876 | F27: 3268.742883 | G27: -1771.916667 | H27: 146.2222222 | I27: 2008.333333 | J27: 6862.666667
A28: ③労働生産性（千円） | B28: 不使用 | C28: 不使用 | D28: 中規模事業者
A29: ③労働生産性（千円） | B29: 不使用 | C29: 不使用 | D29: 小規模事業者
A30: ③労働生産性（千円） | B30: 05_小売業 | C30: 0501_小売業 | D30: 中規模事業者 | E30: 514.6338993 | F30: 1647.678571 | G30: -675.9333333 | H30: 147.3930348 | I30: 1089.97227 | J30: 2744.032696
A31: ③労働生産性（千円） | B31: 05_小売業 | C31: 0501_小売業 | D31: 小規模事業者 | E31: 306.4166667 | F31: 2366.907791 | G31: -2331.333333 | H31: -324 | I31: 918.1666667 | J31: 2914.666667
A32: ③労働生産性（千円） | B32: 06_飲食業 | C32: 0601_飲食業 | D32: 中規模事業者 | E32: 480.9016865 | F32: 1168.983538 | G32: -399.1666667 | H32: 169.1058201 | I32: 937.0127778 | J32: 2389.466667
A33: ③労働生産性（千円） | B33: 06_飲食業 | C33: 0601_飲食業 | D33: 小規模事業者 | E33: 453.2861111 | F33: 2504.182292 | G33: -1439 | H33: -334 | I33: 1172.333333 | J33: 4222.666667
A34: ③労働生産性（千円） | B34: 07_不動産業 | C34: 0701_不動産業 | D34: 中規模事業者 | E34: 2384.387546 | F34: 3248.940917 | G34: 154.7952381 | H34: 1228.835714 | I34: 4191.255556 | J34: 9080.082521
A35: ③労働生産性（千円） | B35: 07_不動産業 | C35: 0701_不動産業 | D35: 小規模事業者 | E35: 3012.833333 | F35: 4672.295328 | G35: -267 | H35: 1409.4 | I35: 5676.888889 | J35: 11980.44444
A36: ③労働生産性（千円） | B36: 08_運輸業 | C36: 0801_運輸業 | D36: 中規模事業者 | E36: 232.2594553 | F36: 1127.845414 | G36: -290.1563181 | H36: 85.60714286 | I36: 463.1636929 | J36: 1378.832208
A37: ③労働生産性（千円） | B37: 08_運輸業 | C37: 0801_運輸業 | D37: 小規模事業者 | E37: 196.925 | F37: 1742.947669 | G37: -839 | H37: -13.29411765 | I37: 504.2222222 | J37: 1778.645833
A38: ③労働生産性（千円） | B38: 09_エネルギー | C38: 0901_エネルギー | D38: 中規模事業者 | E38: 2528.636442 | F38: 2602.414801 | G38: 57.05208333 | H38: 1499.42963 | I38: 4140.438392 | J38: 7196.75554
A39: ③労働生産性（千円） | B39: 09_エネルギー | C39: 0901_エネルギー | D39: 小規模事業者 | E39: 3307.948718 | F39: 4166.654871 | G39: 72.14880952 | H39: 1366.9 | I39: 4021.083333 | J39: 13961.17143
A40: ③労働生産性（千円） | B40: 10_サービス業 | C40: 1006_その他のサービス業 | D40: 中規模事業者 | E40: 488.7592593 | F40: 1741.749583 | G40: -268.7818182 | H40: 201.0844642 | I40: 993.8888889 | J40: 3033.573153
A41: ③労働生産性（千円） | B41: 10_サービス業 | C41: 1006_その他のサービス業 | D41: 小規模事業者 | E41: 472.2268519 | F41: 2738.752637 | G41: -1423.45 | H41: 24.83333333 | I41: 1251.533333 | J41: 4387.333333
A42: ③労働生産性（千円） | B42: 10_サービス業 | C42: 1001_物品賃貸業 | D42: 中規模事業者 | E42: 1292.984831 | F42: 2578.541024 | G42: -74.55555556 | H42: 612.8288515 | I42: 2398.285354 | J42: 5938.197237
A43: ③労働生産性（千円） | B43: 10_サービス業 | C43: 1001_物品賃貸業 | D43: 小規模事業者 | E43: 1149.416667 | F43: 3560.134853 | G43: -1197.183333 | H43: 368.1333333 | I43: 2175.75 | J43: 7472.916667
A44: ③労働生産性（千円） | B44: 10_サービス業 | C44: 1002_娯楽業 | D44: 中規模事業者 | E44: 839.135097 | F44: 2627.514015 | G44: -664.3833333 | H44: 223.6655475 | I44: 1843.444444 | J44: 6122.591667
A45: ③労働生産性（千円） | B45: 10_サービス業 | C45: 1002_娯楽業 | D45: 小規模事業者 | E45: 938.9583333 | F45: 2938.267759 | G45: -2223.055556 | H45: 220.3333333 | I45: 1629 | J45: 5768.8
A46: ③労働生産性（千円） | B46: 10_サービス業 | C46: 1003_広告・調査・情報サービス業 | D46: 中規模事業者 | E46: 358.8935185 | F46: 1249.008124 | G46: -173.2462121 | H46: 161.160452 | I46: 684.1 | J46: 2052.651515
A47: ③労働生産性（千円） | B47: 10_サービス業 | C47: 1003_広告・調査・情報サービス業 | D47: 小規模事業者 | E47: 377.9722222 | F47: 1970.178239 | G47: -1360.333333 | H47: 23.14444444 | I47: 967.0833333 | J47: 3389.333333
A48: ③労働生産性（千円） | B48: 10_サービス業 | C48: 1004_事業サービス業 | D48: 中規模事業者 | E48: 444.6960747 | F48: 1387.988557 | G48: -172.8055556 | H48: 177.1395062 | I48: 864.7919139 | J48: 2504
A49: ③労働生産性（千円） | B49: 10_サービス業 | C49: 1004_事業サービス業 | D49: 小規模事業者 | E49: 420.5 | F49: 2752.610617 | G49: -1459.111111 | H49: -14.66666667 | I49: 1289.333333 | J49: 4734.333333
A50: ③労働生産性（千円） | B50: 10_サービス業 | C50: 1005_専門サービス業 | D50: 中規模事業者 | E50: 594.8717949 | F50: 1551.024056 | G50: -268.7818182 | H50: 288.4761905 | I50: 1070.925397 | J50: 2707.282051
A51: ③労働生産性（千円） | B51: 10_サービス業 | C51: 1005_専門サービス業 | D51: 小規模事業者 | E51: 478.5 | F51: 2565.974962 | G51: -1329.966667 | H51: 59.16666667 | I51: 1195.166667 | J51: 4297.666667
A52: ③労働生産性（千円） | B52: 不使用 | C52: 不使用 | D52: 中規模事業者
A53: ③労働生産性（千円） | B53: 不使用 | C53: 不使用 | D53: 小規模事業者
A54: ③労働生産性（千円） | B54: 11_医療業 | C54: 1101_医療業 | D54: 中規模事業者 | E54: 203.5021246 | F54: 906.7778652 | G54: -446.4654195 | H54: 15.57824675 | I54: 474.8638889 | J54: 1265.065772
A55: ③労働生産性（千円） | B55: 11_医療業 | C55: 1101_医療業 | D55: 小規模事業者 | E55: 8.666666667 | F55: 1876.300693 | G55: -1323.638889 | H55: -366.7333333 | I55: 509.3333333 | J55: 3160.666667
A56: ③労働生産性（千円） | B56: 12_保険衛生、廃棄物処理業 | C56: 1201_保険衛生、廃棄物処理業 | D56: 中規模事業者 | E56: 617.5551743 | F56: 1940.425781 | G56: -213.5555556 | H56: 295.7538462 | I56: 1271.271044 | J56: 4182.106349
A57: ③労働生産性（千円） | B57: 12_保険衛生、廃棄物処理業 | C57: 1201_保険衛生、廃棄物処理業 | D57: 小規模事業者 | E57: 593.5 | F57: 2764.130663 | G57: -2084.444444 | H57: -143.7333333 | I57: 1301.555556 | J57: 5183.833333
A58: ③労働生産性（千円） | B58: 13_観光業 | C58: 1301_観光業 | D58: 中規模事業者 | E58: 655.4534413 | F58: 2221.725108 | G58: -571.3333333 | H58: 224.70819 | I58: 1359.292778 | J58: 4319.792857
A59: ③労働生産性（千円） | B59: 13_観光業 | C59: 1301_観光業 | D59: 小規模事業者 | E59: 479.5384615 | F59: 2909.002342 | G59: -1012.127315 | H59: 123.7142857 | I59: 1367.119048 | J59: 4557.666667
A62: ※労働生産性＝営業利益/従業員数

Sheet 【参照】EBITDA基準値
A1: 指標カテゴリ | B1: 大分類 | C1: 小分類 | D1: 事業規模 | E1: 中央値 | F1: 標準偏差 | G1: ⅳ | H1: ⅲ | I1: ⅱ | J1: ⅰ
A2: ④ＥＢＴＤＡ有利子負債倍率 | B2: 01_農業 | C2: 0101_農業 | D2: 中規模事業者 | E2: 2.483371071 | F2: 14.24665459 | G2: 29.88407751 | H2: 9.225386187 | I2: 1.147595139 | J2: 0
A3: ④ＥＢＴＤＡ有利子負債倍率 | B3: 01_農業 | C3: 0101_農業 | D3: 小規模事業者 | E3: 0 | F3: 15.54335872 | G3: 36.11600204 | H3: 11.03651788 | I3: 0 | J3: 0
A4: ④ＥＢＴＤＡ有利子負債倍率 | B4: 02_建設業 | C4: 0201_建設業 | D4: 中規模事業者 | E4: 0 | F4: 8.261840774 | G4: 14.62094456 | H4: 3.102888803 | I4: 0 | J4: 0
A5: ④ＥＢＴＤＡ有利子負債倍率 | B5: 02_建設業 | C5: 0201_建設業 | D5: 小規模事業者 | E5: 0.1063988879 | F5: 10.41104758 | G5: 18.61781458 | H5: 5.157105718 | I5: 0 | J5: 0
A6: ④ＥＢＴＤＡ有利子負債倍率 | B6: 03_製造業 | C6: 0306_その他の製造業 | D6: 中規模事業者 | E6: 2.360330626 | F6: 13.28844153 | G6: 27.27072341 | H6: 9.745958355 | I6: 0.1696958057 | J6: 0
A7: ④ＥＢＴＤＡ有利子負債倍率 | B7: 03_製造業 | C7: 0306_その他の製造業 | D7: 小規模事業者 | E7: 1.928805171 | F7: 12.93531624 | G7: 24.93159632 | H7: 9.703788848 | I7: 0.4558990811 | J7: 0
A8: ④ＥＢＴＤＡ有利子負債倍率 | B8: 03_製造業 | C8: 0301_食料品・飼料・飲料製造業 | D8: 中規模事業者 | E8: 4.537072658 | F8: 15.72572027 | G8: 35.48447515 | H8: 13.85617586 | I8: 1.650428384 | J8: 0
A9: ④ＥＢＴＤＡ有利子負債倍率 | B9: 03_製造業 | C9: 0301_食料品・飼料・飲料製造業 | D9: 小規模事業者 | E9: 3.881341387 | F9: 15.10235768 | G9: 30.94271073 | H9: 13.44440111 | I9: 2.367146102 | J9: 0
A10: ④ＥＢＴＤＡ有利子負債倍率 | B10: 03_製造業 | C10: 0302_化学工業・関連製品製造業 | D10: 中規模事業者 | E10: 0.6513356352 | F10: 12.26600806 | G10: 23.48474538 | H10: 6.444181013 | I10: 0 | J10: 0
A11: ④ＥＢＴＤＡ有利子負債倍率 | B11: 03_製造業 | C11: 0302_化学工業・関連製品製造業 | D11: 小規模事業者 | E11: 0.7524085307 | F11: 10.36813345 | G11: 20.17553527 | H11: 7.271605166 | I11: 0 | J11: 0
A12: ④ＥＢＴＤＡ有利子負債倍率 | B12: 03_製造業 | C12: 0303_鉄鋼業、非鉄金属製造業 | D12: 中規模事業者 | E12: 3.033950278 | F12: 14.99736196 | G12: 28.96146766 | H12: 12.48937677 | I12: 0.6085269271 | J12: 0
A13: ④ＥＢＴＤＡ有利子負債倍率 | B13: 03_製造業 | C13: 0303_鉄鋼業、非鉄金属製造業 | D13: 小規模事業者 | E13: 3.109914626 | F13: 12.87377378 | G13: 23.46489276 | H13: 9.836902601 | I13: 0.4184072536 | J13: 0
A14: ④ＥＢＴＤＡ有利子負債倍率 | B14: 03_製造業 | C14: 0304_金属製品製造業 | D14: 中規模事業者 | E14: 2.888032886 | F14: 12.91955343 | G14: 27.76528563 | H14: 9.792414264 | I14: 0.4133059315 | J14: 0
A15: ④ＥＢＴＤＡ有利子負債倍率 | B15: 03_製造業 | C15: 0304_金属製品製造業 | D15: 小規模事業者 | E15: 1.670057752 | F15: 11.68828659 | G15: 21.20390775 | H15: 8.358126177 | I15: 0.3896527846 | J15: 0
A16: ④ＥＢＴＤＡ有利子負債倍率 | B16: 03_製造業 | C16: 0305_一般・電気機械器具製造業 | D16: 中規模事業者 | E16: 1.059317029 | F16: 11.56376301 | G16: 22.98408088 | H16: 7.249117167 | I16: 0 | J16: 0
A17: ④ＥＢＴＤＡ有利子負債倍率 | B17: 03_製造業 | C17: 0305_一般・電気機械器具製造業 | D17: 小規模事業者 | E17: 1.571495301 | F17: 12.40815564 | G17: 23.54299034 | H17: 8.985657614 | I17: 0.3402461642 | J17: 0
A18: ④ＥＢＴＤＡ有利子負債倍率 | B18: 不使用 | C18: 不使用 | D18: 中規模事業者
A19: ④ＥＢＴＤＡ有利子負債倍率 | B19: 不使用 | C19: 不使用 | D19: 小規模事業者
A20: ④ＥＢＴＤＡ有利子負債倍率 | B20: 04_卸売業 | C20: 0404_その他の卸売業 | D20: 中規模事業者 | E20: 1.209385379 | F20: 11.53386538 | G20: 21.80861401 | H20: 7.202914512 | I20: 0 | J20: 0
A21: ④ＥＢＴＤＡ有利子負債倍率 | B21: 04_卸売業 | C21: 0404_その他の卸売業 | D21: 小規模事業者 | E21: 0.3594805631 | F21: 12.38135443 | G21: 23.01656287 | H21: 7.039688408 | I21: 0 | J21: 0
A22: ④ＥＢＴＤＡ有利子負債倍率 | B22: 04_卸売業 | C22: 0401_化学製品卸売業 | D22: 中規模事業者 | E22: 0.3906634138 | F22: 11.38510429 | G22: 18.58764097 | H22: 4.991251585 | I22: 0 | J22: 0
A23: ④ＥＢＴＤＡ有利子負債倍率 | B23: 04_卸売業 | C23: 0401_化学製品卸売業 | D23: 小規模事業者 | E23: 0 | F23: 13.17117214 | G23: 24.65969626 | H23: 5.471846579 | I23: 0 | J23: 0
A24: ④ＥＢＴＤＡ有利子負債倍率 | B24: 04_卸売業 | C24: 0402_繊維関連製品卸売業 | D24: 中規模事業者 | E24: 3.393088301 | F24: 14.20565844 | G24: 29.32819388 | H24: 11.26879752 | I24: 0.7937839275 | J24: 0
A25: ④ＥＢＴＤＡ有利子負債倍率 | B25: 04_卸売業 | C25: 0402_繊維関連製品卸売業 | D25: 小規模事業者 | E25: 0.8922772461 | F25: 13.25087412 | G25: 22.61615956 | H25: 8.205400766 | I25: 0.2179829382 | J25: 0
A26: ④ＥＢＴＤＡ有利子負債倍率 | B26: 04_卸売業 | C26: 0403_食料品卸売業 | D26: 中規模事業者 | E26: 2.565518266 | F26: 13.63818405 | G26: 28.24258873 | H26: 11.08909193 | I26: 0.1316266792 | J26: 0
A27: ④ＥＢＴＤＡ有利子負債倍率 | B27: 04_卸売業 | C27: 0403_食料品卸売業 | D27: 小規模事業者 | E27: 1.563098336 | F27: 13.46716203 | G27: 28.00285071 | H27: 10.93194562 | I27: 0.1656929839 | J27: 0
A28: ④ＥＢＴＤＡ有利子負債倍率 | B28: 不使用 | C28: 不使用 | D28: 中規模事業者
A29: ④ＥＢＴＤＡ有利子負債倍率 | B29: 不使用 | C29: 不使用 | D29: 小規模事業者
A30: ④ＥＢＴＤＡ有利子負債倍率 | B30: 05_小売業 | C30: 0501_小売業 | D30: 中規模事業者 | E30: 1.97130756 | F30: 9.996716653 | G30: 20.72470557 | H30: 7.427057892 | I30: 0 | J30: 0
A31: ④ＥＢＴＤＡ有利子負債倍率 | B31: 05_小売業 | C31: 0501_小売業 | D31: 小規模事業者 | E31: 0 | F31: 13.84357006 | G31: 25.83509933 | H31: 10.13659176 | I31: 0 | J31: 0
A32: ④ＥＢＴＤＡ有利子負債倍率 | B32: 06_飲食業 | C32: 0601_飲食業 | D32: 中規模事業者 | E32: 3.243244095 | F32: 8.812062115 | G32: 17.81597783 | H32: 6.421342257 | I32: 1.720106683 | J32: 0
A33: ④ＥＢＴＤＡ有利子負債倍率 | B33: 06_飲食業 | C33: 0601_飲食業 | D33: 小規模事業者 | E33: 1.848538541 | F33: 7.742692631 | G33: 15.05630537 | H33: 7.200005746 | I33: 1.052877032 | J33: 0
A34: ④ＥＢＴＤＡ有利子負債倍率 | B34: 07_不動産業 | C34: 0701_不動産業 | D34: 中規模事業者 | E34: 4.332749399 | F34: 9.301203267 | G34: 18.69039251 | H34: 8.72214673 | I34: 0.763717143 | J34: 0
A35: ④ＥＢＴＤＡ有利子負債倍率 | B35: 07_不動産業 | C35: 0701_不動産業 | D35: 小規模事業者 | E35: 8.343187378 | F35: 12.55551563 | G35: 26.5380702 | H35: 14.38952932 | I35: 4.528515651 | J35: 0
A36: ④ＥＢＴＤＡ有利子負債倍率 | B36: 08_運輸業 | C36: 0801_運輸業 | D36: 中規模事業者 | E36: 4.149562455 | F36: 13.73632284 | G36: 30.17128582 | H36: 11.88809923 | I36: 1.800516737 | J36: 0
A37: ④ＥＢＴＤＡ有利子負債倍率 | B37: 08_運輸業 | C37: 0801_運輸業 | D37: 小規模事業者 | E37: 1.657139895 | F37: 11.74818444 | G37: 23.67062614 | H37: 9.38623899 | I37: 1.045749045 | J37: 0
A38: ④ＥＢＴＤＡ有利子負債倍率 | B38: 09_エネルギー | C38: 0901_エネルギー | D38: 中規模事業者 | E38: 2.725291961 | F38: 13.72157605 | G38: 33.4468253 | H38: 5.653323876 | I38: 0.05012124263 | J38: 0
A39: ④ＥＢＴＤＡ有利子負債倍率 | B39: 09_エネルギー | C39: 0901_エネルギー | D39: 小規模事業者 | E39: 5.599726655 | F39: 17.81211752 | G39: 51.10358932 | H39: 10.28393355 | I39: 2.224929402 | J39: 0
A40: ④ＥＢＴＤＡ有利子負債倍率 | B40: 10_サービス業 | C40: 1006_その他のサービス業 | D40: 中規模事業者 | E40: 0.1497778328 | F40: 9.304206597 | G40: 15.00982815 | H40: 3.703484051 | I40: 0 | J40: 0
A41: ④ＥＢＴＤＡ有利子負債倍率 | B41: 10_サービス業 | C41: 1006_その他のサービス業 | D41: 小規模事業者 | E41: 0 | F41: 9.379856548 | G41: 15.85388498 | H41: 3.450279588 | I41: 0 | J41: 0
A42: ④ＥＢＴＤＡ有利子負債倍率 | B42: 10_サービス業 | C42: 1001_物品賃貸業 | D42: 中規模事業者 | E42: 2.038390837 | F42: 15.26626615 | G42: 27.61269635 | H42: 6.063479916 | I42: 0.2134003589 | J42: 0
A43: ④ＥＢＴＤＡ有利子負債倍率 | B43: 10_サービス業 | C43: 1001_物品賃貸業 | D43: 小規模事業者 | E43: 0.03932193537 | F43: 8.080887197 | G43: 14.16501585 | H43: 4.700378575 | I43: 0 | J43: 0
A44: ④ＥＢＴＤＡ有利子負債倍率 | B44: 10_サービス業 | C44: 1002_娯楽業 | D44: 中規模事業者 | E44: 0.8620247991 | F44: 9.016392195 | G44: 15.81097462 | H44: 4.685956467 | I44: 0 | J44: 0
A45: ④ＥＢＴＤＡ有利子負債倍率 | B45: 10_サービス業 | C45: 1002_娯楽業 | D45: 小規模事業者 | E45: 0.4652977744 | F45: 11.66036147 | G45: 11.16245379 | H45: 2.815968606 | I45: 0 | J45: 0
A46: ④ＥＢＴＤＡ有利子負債倍率 | B46: 10_サービス業 | C46: 1003_広告・調査・情報サービス業 | D46: 中規模事業者 | E46: 0 | F46: 7.630379642 | G46: 12.75805853 | H46: 2.444886029 | I46: 0 | J46: 0
A47: ④ＥＢＴＤＡ有利子負債倍率 | B47: 10_サービス業 | C47: 1003_広告・調査・情報サービス業 | D47: 小規模事業者 | E47: 0 | F47: 7.506595507 | G47: 11.18965579 | H47: 2.231007892 | I47: 0 | J47: 0
A48: ④ＥＢＴＤＡ有利子負債倍率 | B48: 10_サービス業 | C48: 1004_事業サービス業 | D48: 中規模事業者 | E48: 0 | F48: 7.986916081 | G48: 13.17608081 | H48: 2.635377451 | I48: 0 | J48: 0
A49: ④ＥＢＴＤＡ有利子負債倍率 | B49: 10_サービス業 | C49: 1004_事業サービス業 | D49: 小規模事業者 | E49: 0 | F49: 9.211205014 | G49: 16.94992284 | H49: 3.087895521 | I49: 0 | J49: 0
A50: ④ＥＢＴＤＡ有利子負債倍率 | B50: 10_サービス業 | C50: 1005_専門サービス業 | D50: 中規模事業者 | E50: 0 | F50: 7.209565782 | G50: 12.64498954 | H50: 2.327312697 | I50: 0 | J50: 0
A51: ④ＥＢＴＤＡ有利子負債倍率 | B51: 10_サービス業 | C51: 1005_専門サービス業 | D51: 小規模事業者 | E51: 0 | F51: 8.664558215 | G51: 14.43766744 | H51: 3.26879631 | I51: 0 | J51: 0
A52: ④ＥＢＴＤＡ有利子負債倍率 | B52: 不使用 | C52: 不使用 | D52: 中規模事業者
A53: ④ＥＢＴＤＡ有利子負債倍率 | B53: 不使用 | C53: 不使用 | D53: 小規模事業者
A54: ④ＥＢＴＤＡ有利子負債倍率 | B54: 11_医療業 | C54: 1101_医療業 | D54: 中規模事業者 | E54: 1.079260801 | F54: 14.31177272 | G54: 24.78695343 | H54: 9.397881851 | I54: 0 | J54: 0
A55: ④ＥＢＴＤＡ有利子負債倍率 | B55: 11_医療業 | C55: 1101_医療業 | D55: 小規模事業者 | E55: 0 | F55: 12.07874756 | G55: 34.83698623 | H55: 0.5843881857 | I55: 0 | J55: 0
A56: ④ＥＢＴＤＡ有利子負債倍率 | B56: 12_保険衛生、廃棄物処理業 | C56: 1201_保険衛生、廃棄物処理業 | D56: 中規模事業者 | E56: 1.701844223 | F56: 10.40592762 | G56: 18.27591269 | H56: 6.473274072 | I56: 0.1572319069 | J56: 0
A57: ④ＥＢＴＤＡ有利子負債倍率 | B57: 12_保険衛生、廃棄物処理業 | C57: 1201_保険衛生、廃棄物処理業 | D57: 小規模事業者 | E57: 0.3493213809 | F57: 9.964724726 | G57: 20.66906872 | H57: 4.564363238 | I57: 0.1437082691 | J57: 0
A58: ④ＥＢＴＤＡ有利子負債倍率 | B58: 13_観光業 | C58: 1301_観光業 | D58: 中規模事業者 | E58: 2.700291182 | F58: 10.8719079 | G58: 18.5453029 | H58: 8.091030254 | I58: 0.3621705932 | J58: 0
A59: ④ＥＢＴＤＡ有利子負債倍率 | B59: 13_観光業 | C59: 1301_観光業 | D59: 小規模事業者 | E59: 0.4856814867 | F59: 11.98346701 | G59: 25.33870584 | H59: 6.407568692 | I59: 0 | J59: 0
A62: ※ＥＢＴＤＡ有利子負債倍率＝①（借入金－現金・預金）／②（営業利益＋減価償却費）
A63: ※以下の優先順位に基づき、点数を付与。
A64: 優先①：①式が0以下（借入金＜現金・預金又は借入金＝現金・預金＝0）の場合は、「5点」を付与
A65: 優先②：②式が0以下（営業利益＋減価償却費<=0）の場合は、「1点」を付与
A66: 優先③：①式及び②式が0超の時、本式にて算出された結果に基づき点数を付与

Sheet 【参照】営業運転資本回転期間基準値
A1: 指標カテゴリ | B1: 大分類 | C1: 小分類 | D1: 事業規模 | E1: 中央値 | F1: 標準偏差 | G1: ⅳ | H1: ⅲ | I1: ⅱ | J1: ⅰ
A2: ⑥営業運転資本回転期間 | B2: 01_農業 | C2: 0101_農業 | D2: 中規模事業者 | E2: 1.023794746 | F2: 1.408877252 | G2: 3.3 | H2: 1.6 | I2: 0.5 | J2: -0.2
A3: ⑥営業運転資本回転期間 | B3: 01_農業 | C3: 0101_農業 | D3: 小規模事業者 | E3: 1.316475082 | F3: 2.413466129 | G3: 5.9 | H3: 2.2 | I3: 0.7 | J3: 0
A4: ⑥営業運転資本回転期間 | B4: 02_建設業 | C4: 0201_建設業 | D4: 中規模事業者 | E4: 0.992632521 | F4: 1.402952099 | G4: 3.3 | H4: 1.6 | I4: 0.4 | J4: -0.3
A5: ⑥営業運転資本回転期間 | B5: 02_建設業 | C5: 0201_建設業 | D5: 小規模事業者 | E5: 0.7223117228 | F5: 1.372095361 | G5: 2.9 | H5: 1.3 | I5: 0.3 | J5: -0.1
A6: ⑥営業運転資本回転期間 | B6: 03_製造業 | C6: 0306_その他の製造業 | D6: 中規模事業者 | E6: 2.040666859 | F6: 1.604550265 | G6: 4.6 | H6: 2.8 | I6: 1.3 | J6: 0.2
A7: ⑥営業運転資本回転期間 | B7: 03_製造業 | C7: 0306_その他の製造業 | D7: 小規模事業者 | E7: 1.686324059 | F7: 1.776291619 | G7: 4.5 | H7: 2.4 | I7: 1 | J7: 0.1
A8: ⑥営業運転資本回転期間 | B8: 03_製造業 | C8: 0301_食料品・飼料・飲料製造業 | D8: 中規模事業者 | E8: 1.626781154 | F8: 1.636449206 | G8: 4.7 | H8: 2.4 | I8: 1 | J8: 0.3
A9: ⑥営業運転資本回転期間 | B9: 03_製造業 | C9: 0301_食料品・飼料・飲料製造業 | D9: 小規模事業者 | E9: 1.563973272 | F9: 1.862215801 | G9: 4.9 | H9: 2.3 | I9: 1 | J9: 0.3
A10: ⑥営業運転資本回転期間 | B10: 03_製造業 | C10: 0302_化学工業・関連製品製造業 | D10: 中規模事業者 | E10: 2.403220115 | F10: 1.507976543 | G10: 4.6 | H10: 3 | I10: 1.6 | J10: 0.5
A11: ⑥営業運転資本回転期間 | B11: 03_製造業 | C11: 0302_化学工業・関連製品製造業 | D11: 小規模事業者 | E11: 1.865979844 | F11: 1.643000361 | G11: 4 | H11: 2.5 | I11: 1.2 | J11: 0.4
A12: ⑥営業運転資本回転期間 | B12: 03_製造業 | C12: 0303_鉄鋼業、非鉄金属製造業 | D12: 中規模事業者 | E12: 2.160447222 | F12: 1.559275164 | G12: 4.5 | H12: 2.9 | I12: 1.4 | J12: 0.2
A13: ⑥営業運転資本回転期間 | B13: 03_製造業 | C13: 0303_鉄鋼業、非鉄金属製造業 | D13: 小規模事業者 | E13: 1.854696993 | F13: 1.583070732 | G13: 4.1 | H13: 2.7 | I13: 1.2 | J13: 0.1
A14: ⑥営業運転資本回転期間 | B14: 03_製造業 | C14: 0304_金属製品製造業 | D14: 中規模事業者 | E14: 1.940171585 | F14: 1.529154375 | G14: 4.3 | H14: 2.6 | I14: 1.2 | J14: 0.1
A15: ⑥営業運転資本回転期間 | B15: 03_製造業 | C15: 0304_金属製品製造業 | D15: 小規模事業者 | E15: 1.498579135 | F15: 1.509798871 | G15: 3.7 | H15: 2.1 | I15: 0.8 | J15: 0
A16: ⑥営業運転資本回転期間 | B16: 03_製造業 | C16: 0305_一般・電気機械器具製造業 | D16: 中規模事業者 | E16: 2.455100754 | F16: 1.597165077 | G16: 4.9 | H16: 3.3 | I16: 1.7 | J16: 0.4
A17: ⑥営業運転資本回転期間 | B17: 03_製造業 | C17: 0305_一般・電気機械器具製造業 | D17: 小規模事業者 | E17: 1.917721607 | F17: 1.779908739 | G17: 4.6 | H17: 2.7 | I17: 1.2 | J17: 0.2
A18: ⑥営業運転資本回転期間 | B18: 不使用 | C18: 不使用 | D18: 中規模事業者
A19: ⑥営業運転資本回転期間 | B19: 不使用 | C19: 不使用 | D19: 小規模事業者
A20: ⑥営業運転資本回転期間 | B20: 04_卸売業 | C20: 0404_その他の卸売業 | D20: 中規模事業者 | E20: 0.9016997297 | F20: 1.416703488 | G20: 3.2 | H20: 1.5 | I20: 0.3 | J20: -0.4
A21: ⑥営業運転資本回転期間 | B21: 04_卸売業 | C21: 0404_その他の卸売業 | D21: 小規模事業者 | E21: 0.8370728036 | F21: 1.58639837 | G21: 3.3 | H21: 1.5 | I21: 0.3 | J21: -0.2
A22: ⑥営業運転資本回転期間 | B22: 04_卸売業 | C22: 0401_化学製品卸売業 | D22: 中規模事業者 | E22: 0.7186621573 | F22: 1.236593454 | G22: 2.4 | H22: 1.2 | I22: 0.2 | J22: -0.6
A23: ⑥営業運転資本回転期間 | B23: 04_卸売業 | C23: 0401_化学製品卸売業 | D23: 小規模事業者 | E23: 0.8161917829 | F23: 1.279108966 | G23: 2.7 | H23: 1.4 | I23: 0.3 | J23: -0.2
A24: ⑥営業運転資本回転期間 | B24: 04_卸売業 | C24: 0402_繊維関連製品卸売業 | D24: 中規模事業者 | E24: 2.253847503 | F24: 1.700130851 | G24: 4.9 | H24: 3.1 | I24: 1.4 | J24: 0.1
A25: ⑥営業運転資本回転期間 | B25: 04_卸売業 | C25: 0402_繊維関連製品卸売業 | D25: 小規模事業者 | E25: 1.66562323 | F25: 2.187460216 | G25: 6 | H25: 2.8 | I25: 1 | J25: 0
A26: ⑥営業運転資本回転期間 | B26: 04_卸売業 | C26: 0403_食料品卸売業 | D26: 中規模事業者 | E26: 0.6303466482 | F26: 1.19271182 | G26: 2.6 | H26: 1.1 | I26: 0.3 | J26: -0.1
A27: ⑥営業運転資本回転期間 | B27: 04_卸売業 | C27: 0403_食料品卸売業 | D27: 小規模事業者 | E27: 0.7260169747 | F27: 1.589612435 | G27: 3.5 | H27: 1.3 | I27: 0.3 | J27: -0.2
A28: ⑥営業運転資本回転期間 | B28: 不使用 | C28: 不使用 | D28: 中規模事業者
A29: ⑥営業運転資本回転期間 | B29: 不使用 | C29: 不使用 | D29: 小規模事業者
A30: ⑥営業運転資本回転期間 | B30: 05_小売業 | C30: 0501_小売業 | D30: 中規模事業者 | E30: 0.3553588614 | F30: 1.224068487 | G30: 2.2 | H30: 0.8 | I30: 0 | J30: -0.6
A31: ⑥営業運転資本回転期間 | B31: 05_小売業 | C31: 0501_小売業 | D31: 小規模事業者 | E31: 0.8748887099 | F31: 1.712492712 | G31: 4 | H31: 1.6 | I31: 0.4 | J31: -0.2
A32: ⑥営業運転資本回転期間 | B32: 06_飲食業 | C32: 0601_飲食業 | D32: 中規模事業者 | E32: -0.07277675512 | F32: 0.5120017334 | G32: 0.5 | H32: 0.1 | I32: -0.2 | J32: -0.4
A33: ⑥営業運転資本回転期間 | B33: 06_飲食業 | C33: 0601_飲食業 | D33: 小規模事業者 | E33: -0.08978847263 | F33: 0.5781757771 | G33: 0.8 | H33: 0.1 | I33: -0.2 | J33: -0.3
A34: ⑥営業運転資本回転期間 | B34: 07_不動産業 | C34: 0701_不動産業 | D34: 中規模事業者 | E34: 1.127516013 | F34: 2.139957871 | G34: 5.7 | H34: 2.8 | I34: 0.3 | J34: 0
A35: ⑥営業運転資本回転期間 | B35: 07_不動産業 | C35: 0701_不動産業 | D35: 小規模事業者 | E35: 2.731571097 | F35: 2.637220809 | G35: 7 | H35: 4.6 | I35: 0.8 | J35: 0
A36: ⑥営業運転資本回転期間 | B36: 08_運輸業 | C36: 0801_運輸業 | D36: 中規模事業者 | E36: 0.7130067539 | F36: 0.850469949 | G36: 1.8 | H36: 1.2 | I36: 0.1 | J36: -0.3
A37: ⑥営業運転資本回転期間 | B37: 08_運輸業 | C37: 0801_運輸業 | D37: 小規模事業者 | E37: 1.113450268 | F37: 1.055310993 | G37: 2.2 | H37: 1.4 | I37: 0.6 | J37: 0
A38: ⑥営業運転資本回転期間 | B38: 09_エネルギー | C38: 0901_エネルギー | D38: 中規模事業者 | E38: 0.4784932372 | F38: 0.8619768507 | G38: 1.8 | H38: 0.7 | I38: 0.1 | J38: -0.2
A39: ⑥営業運転資本回転期間 | B39: 09_エネルギー | C39: 0901_エネルギー | D39: 小規模事業者 | E39: 0.8197038708 | F39: 1.026599453 | G39: 2.3 | H39: 1.5 | I39: 0.3 | J39: 0
A40: ⑥営業運転資本回転期間 | B40: 10_サービス業 | C40: 1006_その他のサービス業 | D40: 中規模事業者 | E40: 1.128153749 | F40: 1.153610119 | G40: 2.7 | H40: 1.5 | I40: 0.6 | J40: 0
A41: ⑥営業運転資本回転期間 | B41: 10_サービス業 | C41: 1006_その他のサービス業 | D41: 小規模事業者 | E41: 0.9256063678 | F41: 1.402201464 | G41: 2.7 | H41: 1.4 | I41: 0.4 | J41: -0.1
A42: ⑥営業運転資本回転期間 | B42: 10_サービス業 | C42: 1001_物品賃貸業 | D42: 中規模事業者 | E42: 1.07900954 | F42: 1.285389969 | G42: 2.9 | H42: 1.6 | I42: 0.6 | J42: -0.1
A43: ⑥営業運転資本回転期間 | B43: 10_サービス業 | C43: 1001_物品賃貸業 | D43: 小規模事業者 | E43: 0.9824644005 | F43: 1.542154558 | G43: 3 | H43: 1.5 | I43: 0.4 | J43: 0
A44: ⑥営業運転資本回転期間 | B44: 10_サービス業 | C44: 1002_娯楽業 | D44: 中規模事業者 | E44: 0.2380778224 | F44: 0.9990034731 | G44: 1.9 | H44: 0.6 | I44: 0 | J44: -0.2
A45: ⑥営業運転資本回転期間 | B45: 10_サービス業 | C45: 1002_娯楽業 | D45: 小規模事業者 | E45: 0.7911567188 | F45: 1.02197258 | G45: 2.3 | H45: 1.1 | I45: 0.1 | J45: 0
A46: ⑥営業運転資本回転期間 | B46: 10_サービス業 | C46: 1003_広告・調査・情報サービス業 | D46: 中規模事業者 | E46: 1.453501772 | F46: 1.155282719 | G46: 3 | H46: 1.8 | I46: 1 | J46: 0.1
A47: ⑥営業運転資本回転期間 | B47: 10_サービス業 | C47: 1003_広告・調査・情報サービス業 | D47: 小規模事業者 | E47: 1.115836001 | F47: 1.383538588 | G47: 2.8 | H47: 1.6 | I47: 0.7 | J47: 0
A48: ⑥営業運転資本回転期間 | B48: 10_サービス業 | C48: 1004_事業サービス業 | D48: 中規模事業者 | E48: 1.094891973 | F48: 0.9376875851 | G48: 2.3 | H48: 1.4 | I48: 0.7 | J48: 0
A49: ⑥営業運転資本回転期間 | B49: 10_サービス業 | C49: 1004_事業サービス業 | D49: 小規模事業者 | E49: 0.9522756279 | F49: 1.199870152 | G49: 2.4 | H49: 1.3 | I49: 0.5 | J49: -0.1
A50: ⑥営業運転資本回転期間 | B50: 10_サービス業 | C50: 1005_専門サービス業 | D50: 中規模事業者 | E50: 1.035315116 | F50: 1.322272927 | G50: 3.2 | H50: 1.6 | I50: 0.5 | J50: 0
A51: ⑥営業運転資本回転期間 | B51: 10_サービス業 | C51: 1005_専門サービス業 | D51: 小規模事業者 | E51: 0.8604644579 | F51: 1.498276764 | G51: 3 | H51: 1.4 | I51: 0.4 | J51: -0.1
A52: ⑥営業運転資本回転期間 | B52: 不使用 | C52: 不使用 | D52: 中規模事業者
A53: ⑥営業運転資本回転期間 | B53: 不使用 | C53: 不使用 | D53: 小規模事業者
A54: ⑥営業運転資本回転期間 | B54: 11_医療業 | C54: 1101_医療業 | D54: 中規模事業者 | E54: 1.365339518 | F54: 0.9423007964 | G54: 1.9 | H54: 1.6 | I54: 0.4 | J54: -0.3
A55: ⑥営業運転資本回転期間 | B55: 11_医療業 | C55: 1101_医療業 | D55: 小規模事業者 | E55: 0.5636255028 | F55: 0.8893154599 | G55: 2.1 | H55: 1 | I55: 0.2 | J55: -0.1
A56: ⑥営業運転資本回転期間 | B56: 12_保険衛生、廃棄物処理業 | C56: 1201_保険衛生、廃棄物処理業 | D56: 中規模事業者 | E56: 1.122327074 | F56: 0.8394231784 | G56: 2.1 | H56: 1.4 | I56: 0.7 | J56: 0
A57: ⑥営業運転資本回転期間 | B57: 12_保険衛生、廃棄物処理業 | C57: 1201_保険衛生、廃棄物処理業 | D57: 小規模事業者 | E57: 0.9805153039 | F57: 0.9496882964 | G57: 2.3 | H57: 1.3 | I57: 0.6 | J57: 0
A58: ⑥営業運転資本回転期間 | B58: 13_観光業 | C58: 1301_観光業 | D58: 中規模事業者 | E58: 0.3037884925 | F58: 0.6443048649 | G58: 1.3 | H58: 0.6 | I58: 0.1 | J58: -0.2
A59: ⑥営業運転資本回転期間 | B59: 13_観光業 | C59: 1301_観光業 | D59: 小規模事業者 | E59: 0.5281342955 | F59: 1.134382256 | G59: 1.4 | H59: 1 | I59: 0.1 | J59: -0.2

Sheet 【参照】自己資本比率基準値
A1: 指標カテゴリ | B1: 大分類 | C1: 小分類 | D1: 事業規模 | E1: 中央値 | F1: 標準偏差 | G1: ⅳ | H1: ⅲ | I1: ⅱ | J1: ⅰ
A2: ⑤自己資本比率 | B2: 01_農業 | C2: 0101_農業 | D2: 中規模事業者 | E2: 0.2212023644 | F2: 0.2408472558 | G2: -0.01354137239 | H2: 0.1054054636 | I2: 0.3456769232 | J2: 0.6261719088
A3: ⑤自己資本比率 | B3: 01_農業 | C3: 0101_農業 | D3: 小規模事業者 | E3: 0.1559284923 | F3: 0.4420284215 | G3: -0.5466270715 | H3: 0.04986970379 | I3: 0.3194502157 | J3: 0.7114270108
A4: ⑤自己資本比率 | B4: 02_建設業 | C4: 0201_建設業 | D4: 中規模事業者 | E4: 0.3275590822 | F4: 0.2348731788 | G4: 0.05249848468 | H4: 0.2106920747 | I4: 0.4693451849 | J4: 0.6978004258
A5: ⑤自己資本比率 | B5: 02_建設業 | C5: 0201_建設業 | D5: 小規模事業者 | E5: 0.2211948189 | F5: 0.4578835706 | G5: -0.4947313949 | H5: 0.08470427248 | I5: 0.3927185154 | J5: 0.6917898723
A6: ⑤自己資本比率 | B6: 03_製造業 | C6: 0306_その他の製造業 | D6: 中規模事業者 | E6: 0.321441603 | F6: 0.2492428849 | G6: 0.03262403121 | H6: 0.1964767808 | I6: 0.4737611495 | J6: 0.7183997421
A7: ⑤自己資本比率 | B7: 03_製造業 | C7: 0306_その他の製造業 | D7: 小規模事業者 | E7: 0.208868398 | F7: 0.4108081853 | G7: -0.3632060051 | H7: 0.08351507523 | I7: 0.3815884618 | J7: 0.7111858986
A8: ⑤自己資本比率 | B8: 03_製造業 | C8: 0301_食料品・飼料・飲料製造業 | D8: 中規模事業者 | E8: 0.2674670067 | F8: 0.2452004494 | G8: 0.00850117925 | H8: 0.1533606207 | I8: 0.4096186365 | J8: 0.6706603234
A9: ⑤自己資本比率 | B9: 03_製造業 | C9: 0301_食料品・飼料・飲料製造業 | D9: 小規模事業者 | E9: 0.1483469108 | F9: 0.4082333399 | G9: -0.4425881257 | H9: 0.04546823968 | I9: 0.2951024266 | J9: 0.6854620455
A10: ⑤自己資本比率 | B10: 03_製造業 | C10: 0302_化学工業・関連製品製造業 | D10: 中規模事業者 | E10: 0.4422122087 | F10: 0.2368442156 | G10: 0.1062956042 | H10: 0.2927702686 | I10: 0.5770458686 | J10: 0.7764973925
A11: ⑤自己資本比率 | B11: 03_製造業 | C11: 0302_化学工業・関連製品製造業 | D11: 小規模事業者 | E11: 0.3611652372 | F11: 0.4056951761 | G11: -0.1378751928 | H11: 0.1837288971 | I11: 0.517183698 | J11: 0.8193809501
A12: ⑤自己資本比率 | B12: 03_製造業 | C12: 0303_鉄鋼業、非鉄金属製造業 | D12: 中規模事業者 | E12: 0.3282510334 | F12: 0.2446073594 | G12: 0.02303671343 | H12: 0.2117881388 | I12: 0.4692825521 | J12: 0.709218612
A13: ⑤自己資本比率 | B13: 03_製造業 | C13: 0303_鉄鋼業、非鉄金属製造業 | D13: 小規模事業者 | E13: 0.3014609506 | F13: 0.3917512272 | G13: -0.1912756313 | H13: 0.1413355061 | I13: 0.4411832833 | J13: 0.7417317344
A14: ⑤自己資本比率 | B14: 03_製造業 | C14: 0304_金属製品製造業 | D14: 中規模事業者 | E14: 0.3027222063 | F14: 0.2534472897 | G14: 0.01251944941 | H14: 0.1905553927 | I14: 0.4510050393 | J14: 0.7112031667
A15: ⑤自己資本比率 | B15: 03_製造業 | C15: 0304_金属製品製造業 | D15: 小規模事業者 | E15: 0.2081973016 | F15: 0.4135299468 | G15: -0.3812145046 | H15: 0.08402502963 | I15: 0.386377661 | J15: 0.7017745681
A16: ⑤自己資本比率 | B16: 03_製造業 | C16: 0305_一般・電気機械器具製造業 | D16: 中規模事業者 | E16: 0.3438887031 | F16: 0.2453570685 | G16: 0.04515278237 | H16: 0.2151349036 | I16: 0.4879946657 | J16: 0.7267217783
A17: ⑤自己資本比率 | B17: 03_製造業 | C17: 0305_一般・電気機械器具製造業 | D17: 小規模事業者 | E17: 0.1994376071 | F17: 0.42833564 | G17: -0.3971529257 | H17: 0.08267947142 | I17: 0.3634134061 | J17: 0.7143913782
A18: ⑤自己資本比率 | B18: 不使用 | C18: 不使用 | D18: 中規模事業者
A19: ⑤自己資本比率 | B19: 不使用 | C19: 不使用 | D19: 小規模事業者
A20: ⑤自己資本比率 | B20: 04_卸売業 | C20: 0404_その他の卸売業 | D20: 中規模事業者 | E20: 0.2719420749 | F20: 0.2234456393 | G20: 0.03846925811 | H20: 0.1730861542 | I20: 0.3953858314 | J20: 0.6389192708
A21: ⑤自己資本比率 | B21: 04_卸売業 | C21: 0404_その他の卸売業 | D21: 小規模事業者 | E21: 0.2015701165 | F21: 0.3701993316 | G21: -0.279999898 | H21: 0.08901828923 | I21: 0.3427194782 | J21: 0.6443743154
A22: ⑤自己資本比率 | B22: 04_卸売業 | C22: 0401_化学製品卸売業 | D22: 中規模事業者 | E22: 0.2910569803 | F22: 0.2083044456 | G22: 0.07742963568 | H22: 0.2049760777 | I22: 0.4146575617 | J22: 0.6562928515
A23: ⑤自己資本比率 | B23: 04_卸売業 | C23: 0401_化学製品卸売業 | D23: 小規模事業者 | E23: 0.252238583 | F23: 0.3573467344 | G23: -0.09956988787 | H23: 0.140165686 | I23: 0.4317072802 | J23: 0.719270764
A24: ⑤自己資本比率 | B24: 04_卸売業 | C24: 0402_繊維関連製品卸売業 | D24: 中規模事業者 | E24: 0.3114888292 | F24: 0.2316971771 | G24: 0.05430790815 | H24: 0.1939126678 | I24: 0.4509248414 | J24: 0.697524898
A25: ⑤自己資本比率 | B25: 04_卸売業 | C25: 0402_繊維関連製品卸売業 | D25: 小規模事業者 | E25: 0.1649049558 | F25: 0.4034344244 | G25: -0.2795095929 | H25: 0.07647890672 | I25: 0.3023619492 | J25: 0.6363041796
A26: ⑤自己資本比率 | B26: 04_卸売業 | C26: 0403_食料品卸売業 | D26: 中規模事業者 | E26: 0.2366152668 | F26: 0.2321503375 | G26: 0.001601597612 | H26: 0.1396048106 | I26: 0.36838531 | J26: 0.616645123
A27: ⑤自己資本比率 | B27: 04_卸売業 | C27: 0403_食料品卸売業 | D27: 小規模事業者 | E27: 0.1488519986 | F27: 0.3667920224 | G27: -0.3789383012 | H27: 0.06513456126 | I27: 0.2619899902 | J27: 0.5878083343
A28: ⑤自己資本比率 | B28: 不使用 | C28: 不使用 | D28: 中規模事業者
A29: ⑤自己資本比率 | B29: 不使用 | C29: 不使用 | D29: 小規模事業者
A30: ⑤自己資本比率 | B30: 05_小売業 | C30: 0501_小売業 | D30: 中規模事業者 | E30: 0.2638294354 | F30: 0.2485357133 | G30: -0.006936023458 | H30: 0.1361673537 | I30: 0.4038622344 | J30: 0.6663416421
A31: ⑤自己資本比率 | B31: 05_小売業 | C31: 0501_小売業 | D31: 小規模事業者 | E31: 0.08431078342 | F31: 0.5003779965 | G31: -0.6707420132 | H31: -0.02822194846 | I31: 0.2357201957 | J31: 0.557798261
A32: ⑤自己資本比率 | B32: 06_飲食業 | C32: 0601_飲食業 | D32: 中規模事業者 | E32: 0.1566351494 | F32: 0.230727648 | G32: -0.08461977178 | H32: 0.08459177487 | I32: 0.2734197115 | J32: 0.5397253813
A33: ⑤自己資本比率 | B33: 06_飲食業 | C33: 0601_飲食業 | D33: 小規模事業者 | E33: 0.0845718843 | F33: 0.4692306501 | G33: -0.8379314492 | H33: -0.07151946829 | I33: 0.2080859153 | J33: 0.5197048934
A34: ⑤自己資本比率 | B34: 07_不動産業 | C34: 0701_不動産業 | D34: 中規模事業者 | E34: 0.263671778 | F34: 0.1920232021 | G34: 0.06980177109 | H34: 0.1870511919 | I34: 0.3718838583 | J34: 0.5768678754
A35: ⑤自己資本比率 | B35: 07_不動産業 | C35: 0701_不動産業 | D35: 小規模事業者 | E35: 0.1676241792 | F35: 0.2667174381 | G35: -0.01308404577 | H35: 0.09910989839 | I35: 0.2666742696 | J35: 0.5201877871
A36: ⑤自己資本比率 | B36: 08_運輸業 | C36: 0801_運輸業 | D36: 中規模事業者 | E36: 0.1568048448 | F36: 0.2261148052 | G36: -0.048949623 | H36: 0.07370903817 | I36: 0.2909307512 | J36: 0.5425940819
A37: ⑤自己資本比率 | B37: 08_運輸業 | C37: 0801_運輸業 | D37: 小規模事業者 | E37: 0.09240001851 | F37: 0.4038864259 | G37: -0.551590999 | H37: 0.01121896995 | I37: 0.2124019482 | J37: 0.5419876475
A38: ⑤自己資本比率 | B38: 09_エネルギー | C38: 0901_エネルギー | D38: 中規模事業者 | E38: 0.4479755243 | F38: 0.2560213847 | G38: 0.1019160019 | H38: 0.3098069813 | I38: 0.629105497 | J38: 0.769601051
A39: ⑤自己資本比率 | B39: 09_エネルギー | C39: 0901_エネルギー | D39: 小規模事業者 | E39: 0.1665860572 | F39: 0.3530206283 | G39: -0.3950063474 | H39: 0.02651942665 | I39: 0.3514505652 | J39: 0.691689355
A40: ⑤自己資本比率 | B40: 10_サービス業 | C40: 1006_その他のサービス業 | D40: 中規模事業者 | E40: 0.3098578464 | F40: 0.2526867971 | G40: 0.01930671562 | H40: 0.1869888373 | I40: 0.4593615307 | J40: 0.7106660234
A41: ⑤自己資本比率 | B41: 10_サービス業 | C41: 1006_その他のサービス業 | D41: 小規模事業者 | E41: 0.2070154014 | F41: 0.477001455 | G41: -0.6086768303 | H41: 0.07505877389 | I41: 0.4003841452 | J41: 0.7048098804
A42: ⑤自己資本比率 | B42: 10_サービス業 | C42: 1001_物品賃貸業 | D42: 中規模事業者 | E42: 0.2313991368 | F42: 0.2409774806 | G42: 0.02108427147 | H42: 0.1296596993 | I42: 0.3715387126 | J42: 0.6410328664
A43: ⑤自己資本比率 | B43: 10_サービス業 | C43: 1001_物品賃貸業 | D43: 小規模事業者 | E43: 0.2091034598 | F43: 0.2949547078 | G43: -0.1874681553 | H43: 0.1004309555 | I43: 0.3499271913 | J43: 0.6792402844
A44: ⑤自己資本比率 | B44: 10_サービス業 | C44: 1002_娯楽業 | D44: 中規模事業者 | E44: 0.2790126648 | F44: 0.2775362349 | G44: -0.0281773267 | H44: 0.1462005688 | I44: 0.4655277766 | J44: 0.7521483271
A45: ⑤自己資本比率 | B45: 10_サービス業 | C45: 1002_娯楽業 | D45: 小規模事業者 | E45: 0.1617993818 | F45: 0.6588232375 | G45: -1.401066181 | H45: 0.03614275888 | I45: 0.3187005612 | J45: 0.6126303262
A46: ⑤自己資本比率 | B46: 10_サービス業 | C46: 1003_広告・調査・情報サービス業 | D46: 中規模事業者 | E46: 0.3249423773 | F46: 0.240518755 | G46: 0.04040549222 | H46: 0.2094869273 | I46: 0.4555792141 | J46: 0.6911879752
A47: ⑤自己資本比率 | B47: 10_サービス業 | C47: 1003_広告・調査・情報サービス業 | D47: 小規模事業者 | E47: 0.2248851243 | F47: 0.5314409787 | G47: -0.8318211634 | H47: 0.08291677125 | I47: 0.4416302215 | J47: 0.6994916296
A48: ⑤自己資本比率 | B48: 10_サービス業 | C48: 1004_事業サービス業 | D48: 中規模事業者 | E48: 0.3257224573 | F48: 0.2463574353 | G48: 0.03855274278 | H48: 0.1996792336 | I48: 0.4790179445 | J48: 0.71512941
A49: ⑤自己資本比率 | B49: 10_サービス業 | C49: 1004_事業サービス業 | D49: 小規模事業者 | E49: 0.2112284053 | F49: 0.4951953696 | G49: -0.6763897799 | H49: 0.05453619694 | I49: 0.4093558014 | J49: 0.7237313898
A50: ⑤自己資本比率 | B50: 10_サービス業 | C50: 1005_専門サービス業 | D50: 中規模事業者 | E50: 0.3726574291 | F50: 0.2528748762 | G50: 0.03875373553 | H50: 0.2271607543 | I50: 0.5236461567 | J50: 0.734340841
A51: ⑤自己資本比率 | B51: 10_サービス業 | C51: 1005_専門サービス業 | D51: 小規模事業者 | E51: 0.2319844576 | F51: 0.4624679062 | G51: -0.5425132636 | H51: 0.08411730878 | I51: 0.433195023 | J51: 0.7259632773
A52: ⑤自己資本比率 | B52: 不使用 | C52: 不使用 | D52: 中規模事業者
A53: ⑤自己資本比率 | B53: 不使用 | C53: 不使用 | D53: 小規模事業者
A54: ⑤自己資本比率 | B54: 11_医療業 | C54: 1101_医療業 | D54: 中規模事業者 | E54: 0.3114086589 | F54: 0.2849824367 | G54: -0.04338986154 | H54: 0.1646654991 | I54: 0.501650841 | J54: 0.750215331
A55: ⑤自己資本比率 | B55: 11_医療業 | C55: 1101_医療業 | D55: 小規模事業者 | E55: 0.2189666834 | F55: 0.5743441206 | G55: -0.6065280681 | H55: 0.004381871419 | I55: 0.6071936608 | J55: 0.8835479236
A56: ⑤自己資本比率 | B56: 12_保険衛生、廃棄物処理業 | C56: 1201_保険衛生、廃棄物処理業 | D56: 中規模事業者 | E56: 0.3035747281 | F56: 0.2647143999 | G56: 0.01799160841 | H56: 0.1948748165 | I56: 0.4725258455 | J56: 0.7418192806
A57: ⑤自己資本比率 | B57: 12_保険衛生、廃棄物処理業 | C57: 1201_保険衛生、廃棄物処理業 | D57: 小規模事業者 | E57: 0.2236892851 | F57: 0.451360727 | G57: -0.3862074688 | H57: 0.08716028565 | I57: 0.3858115057 | J57: 0.6524336522
A58: ⑤自己資本比率 | B58: 13_観光業 | C58: 1301_観光業 | D58: 中規模事業者 | E58: 0.1992749357 | F58: 0.235539759 | G58: -0.07263593689 | H58: 0.1054148105 | I58: 0.3244207245 | J58: 0.5891399567
A59: ⑤自己資本比率 | B59: 13_観光業 | C59: 1301_観光業 | D59: 小規模事業者 | E59: 0.1306480421 | F59: 0.3951853446 | G59: -0.5539488411 | H59: 0.02663895436 | I59: 0.2483773588 | J59: 0.5835821984
